Workbook

Sheet Total Consolidated
E2: JEFFCO HOUSING CORPORATION
E3: CONSOLIDATED
E4: FY 2016 OPERATING BUDGET
H6: Actual | I6: Actual
C7: Budget | E7: Budget | F7: Budget | I7: YTD
C8: FY 2015 | E8: FY 2016 | F8: FY 2016 | H8: FY 2015 | I8: FY 2015
C9: ANNUAL | E9: ANNUAL | F9: Monthly | H9: 12MO Esitmate | I9: at 9/30/15
A11: OPERATING RECEIPTS-TOTAL
A12: ORCHARD VALLEY | C12: ='Orchard Valley'!B22 -> 288360 | E12: ='Orchard Valley'!C22 -> 288750 | F12: ='Orchard Valley'!D22 -> 24062.5 | H12: ='Orchard Valley'!E22 -> 291164.3067 | I12: ='Orchard Valley'!F22 -> 218373.23
A13: RESPITE | C13: =#REF! ->  | E13: =#REF! ->  | F13: =#REF! ->  | H13: =#REF! ->  | I13: =#REF! -> 
A14: UPHAM | C14: =UPHAM!B22 -> 110200 | E14: =UPHAM!C22 -> 123330 | F14: =UPHAM!D22 -> 9177.5 | H14: =UPHAM!E22 -> 124075.4533 | I14: =UPHAM!F22 -> 93056.59
A15: WEST 40TH | C15: ='west 40'!B22 -> 77030 | E15: ='west 40'!C22 -> 75230 | F15: ='west 40'!D22 -> 6269.166667 | H15: ='west 40'!E22 -> 67333.26667 | I15: ='west 40'!F22 -> 50499.95
A16: WHEAT RIDGE PARK | C16: ='WRP '!B22 -> 169900 | E16: ='WRP '!C22 -> 163010 | F16: ='WRP '!D22 -> 13584.16667 | H16: ='WRP '!E22 -> 159028.8933 | I16: ='WRP '!F22 -> 119271.67
A17: HILLTOP | C17: ='Hilltop '!B23 -> 284630 | E17: ='Hilltop '!C23 -> 299610 | F17: ='Hilltop '!D23 -> 24967.5 | H17: ='Hilltop '!E23 -> 291359.6 | I17: ='Hilltop '!F23 -> 218519.7
A18: WEST 46TH | C18: ='west 46 '!B21 -> 88380 | E18: ='west 46 '!C21 -> 79680 | F18: ='west 46 '!D21 -> 6640 | H18: ='west 46 '!E21 -> 66842.6 | I18: ='west 46 '!F21 -> 50131.95
A19: ARVADA COTTAGES | C19: ='Arvada Cottages '!B20 -> 273750 | E19: ='Arvada Cottages '!C20 -> 251070 | F19: ='Arvada Cottages '!D20 -> 20922.5 | H19: ='Arvada Cottages '!E20 -> 270207.7067 | I19: ='Arvada Cottages '!F20 -> 202655.78
A20: ALLISON VILLAGE | C20: ='Allison Village'!B18 -> 362970 | E20: ='Allison Village'!C18 -> 353220 | F20: ='Allison Village'!D18 -> 29435 | H20: ='Allison Village'!E18 -> 340237.48 | I20: ='Allison Village'!F18 -> 253578.38
A21: DISPERSED HOUSING | C21: =#REF! ->  | E21: =#REF! ->  | F21: =#REF! ->  | H21: =#REF! ->  | I21: =#REF! -> 
A23: TOTAL OPERATING RECEIPTS | C23: ='Consolidated for board'!C21 -> 1655220 | E23: ='Consolidated for board'!E21 -> 1633900 | F23: ='Consolidated for board'!F21 -> 135058.3333 | H23: ='Consolidated for board'!H21 -> 1610249.307 | I23: ='Consolidated for board'!I21 -> 1206087.25
A25: OPERATING EXPENDITURES
A26: ORCHARD VALLEY | C26: ='Orchard Valley'!B32 -> 332155 | E26: ='Orchard Valley'!D32 -> 29295.03188 | F26: ='Orchard Valley'!E32 -> 380268.9533 | H26: ='Orchard Valley'!G32 -> 0 | I26: ='Orchard Valley'!#REF! -> 
A27: RESPITE | C27: =#REF! ->  | E27: =#REF! ->  | F27: =#REF! ->  | H27: =#REF! ->  | I27: =#REF! -> 
A28: UPHAM | C28: =UPHAM!B32 -> 124840 | E28: =UPHAM!D32 -> 11693.31529 | F28: =UPHAM!E32 -> 110564.6933 | H28: =UPHAM!G32 -> 0 | I28: =UPHAM!#REF! -> 
A29: WEST 40TH | C29: ='west 40'!B32 -> 90140 | E29: ='west 40'!D32 -> 7783.344156 | F29: ='west 40'!E32 -> 83036.05333 | H29: ='west 40'!G32 -> 0 | I29: ='west 40'!#REF! -> 
A30: WHEAT RIDGE PARK | C30: ='WRP '!B32 -> 196810 | E30: ='WRP '!D32 -> 15804.98894 | F30: ='WRP '!E32 -> 177222.2 | H30: ='WRP '!G32 -> 0 | I30: ='WRP '!#REF! -> 
A31: HILLTOP | C31: ='Hilltop '!B33 -> 341390 | E31: ='Hilltop '!D33 -> 31084.14955 | F31: ='Hilltop '!E33 -> 326322.3122 | H31: ='Hilltop '!G33 -> 0 | I31: ='Hilltop '!H33 -> 0
A32: WEST 46TH | C32: ='west 46 '!B31 -> 99870 | E32: ='west 46 '!D31 -> 8700.862222 | F32: ='west 46 '!E31 -> 88466.96 | H32: ='west 46 '!G31 -> 0 | I32: ='west 46 '!#REF! -> 
A33: ARVADA COTTAGES | C33: ='Arvada Cottages '!B30 -> 322793 | E33: ='Arvada Cottages '!D30 -> 27641.65341 | F33: ='Arvada Cottages '!E30 -> 301896.5267 | H33: ='Arvada Cottages '!G30 -> 0 | I33: ='Arvada Cottages '!#REF! -> 
A34: ALLISON VILLAGE | C34: ='Allison Village'!B28 -> 423770 | E34: ='Allison Village'!D28 -> 36919.18026 | F34: ='Allison Village'!E28 -> 408498.3778 | H34: ='Allison Village'!G28 -> 0 | I34: ='Allison Village'!#REF! -> 
A35: DISPERSED HOUSING | C35: =#REF! ->  | E35: =#REF! ->  | F35: =#REF! ->  | H35: =#REF! ->  | I35: =#REF! -> 
A37: TOTAL OPERATING EXPENSE | C37: ='Consolidated for board'!C33 -> 1931768 | E37: ='Consolidated for board'!E33 -> 2013930.309 | F37: ='Consolidated for board'!F33 -> 168922.5257 | H37: ='Consolidated for board'!H33 -> 163460.6656 | I37: ='Consolidated for board'!I33 -> 1471145.99
A38: NET INCOME | C38: =SUM(C23-C37) -> -276548 | E38: =SUM(E23-E37) -> -380030.3085 | F38: =SUM(F23-F37) -> -33864.19238 | H38: =SUM(H23-H37) -> 1446788.641 | I38: =SUM(I23-I37) -> -265058.74
A42: ADMINISTRATIVE EXPENDITURES
A43: ORCHARD VALLEY | C43: ='Orchard Valley'!B49 -> 33910 | E43: ='Orchard Valley'!D49 -> 2891.691878 | F43: ='Orchard Valley'!E49 -> 34509.34667 | H43: ='Orchard Valley'!G49 -> 0 | I43: ='Orchard Valley'!#REF! -> 
A44: RESPITE | C44: =#REF! ->  | E44: =#REF! ->  | F44: =#REF! ->  | H44: =#REF! ->  | I44: =#REF! -> 
A45: UPHAM | C45: =UPHAM!B48 -> 21630 | E45: =UPHAM!D48 -> 2038.333333 | F45: =UPHAM!E48 -> 22976.56 | H45: =UPHAM!G48 -> 0 | I45: =UPHAM!#REF! -> 
A46: WEST 40TH | C46: ='west 40'!B48 -> 5200 | E46: ='west 40'!D48 -> 536.6686 | F46: ='west 40'!E48 -> 5409.133333 | H46: ='west 40'!G48 -> 0 | I46: ='west 40'!#REF! -> 
A47: WHEAT RIDGE PARK | C47: ='WRP '!B48 -> 21470 | E47: ='WRP '!D48 -> 1953.333333 | F47: ='WRP '!E48 -> 21427.85333 | H47: ='WRP '!G48 -> 0 | I47: ='WRP '!#REF! -> 
A48: HILLTOP | C48: ='Hilltop '!B49 -> 33650 | E48: ='Hilltop '!D49 -> 3004.184722 | F48: ='Hilltop '!E49 -> 35005.57333 | H48: ='Hilltop '!G49 -> 0 | I48: ='Hilltop '!H49 -> 0
A49: WEST 46TH | C49: ='west 46 '!B45 -> 4530 | E49: ='west 46 '!D45 -> 487.5288889 | F49: ='west 46 '!E45 -> 4854.093333 | H49: ='west 46 '!G45 -> 0 | I49: ='west 46 '!#REF! -> 
A50: ARVADA COTTAGES | C50: ='Arvada Cottages '!B47 -> 28190 | E50: ='Arvada Cottages '!D47 -> 2269.153411 | F50: ='Arvada Cottages '!E47 -> 26391.54667 | H50: ='Arvada Cottages '!G47 -> 0 | I50: ='Arvada Cottages '!#REF! -> 
A51: ALLISON VILLAGE | C51: ='Allison Village'!B46 -> 59910 | E51: ='Allison Village'!D46 -> 5105.833333 | F51: ='Allison Village'!E46 -> 62410.30667 | H51: ='Allison Village'!G46 -> 0 | I51: ='Allison Village'!#REF! -> 
A52: DISPERSED HOUSING | C52: =#REF! ->  | E52: =#REF! ->  | F52: =#REF! ->  | H52: =#REF! ->  | I52: =#REF! -> 
A54: TOTAL ADMINISTRATIVE | C54: ='Consolidated for board'!C49 -> 208490 | E54: ='Consolidated for board'!E49 -> 219440.73 | F54: ='Consolidated for board'!F49 -> 18286.7275 | H54: ='Consolidated for board'!H49 -> 212984.4133 | I54: ='Consolidated for board'!I49 -> 159738.31
A56: OPERATING EXPENDITURES
A57: ORCHARD VALLEY | C57: ='Orchard Valley'!B56 -> 43490 | E57: ='Orchard Valley'!D56 -> 3727.506667 | F57: ='Orchard Valley'!E56 -> 42918.16667 | H57: ='Orchard Valley'!G56 -> 0 | I57: ='Orchard Valley'!#REF! -> 
A58: RESPITE | C58: =#REF! ->  | E58: =#REF! ->  | F58: =#REF! ->  | H58: =#REF! ->  | I58: =#REF! -> 
A59: UPHAM | C59: =UPHAM!B55 -> 15230 | E59: =UPHAM!D55 -> 1251.666667 | F59: =UPHAM!E55 -> 13120.08 | H59: =UPHAM!G55 -> 0 | I59: =UPHAM!#REF! -> 
A60: WEST 40TH | C60: ='west 40'!B55 -> 9250 | E60: ='west 40'!D55 -> 672.5 | F60: ='west 40'!E55 -> 7717.653333 | H60: ='west 40'!G55 -> 0 | I60: ='west 40'!#REF! -> 
A61: WHEAT RIDGE PARK | C61: ='WRP '!B55 -> 16370 | E61: ='WRP '!D55 -> 1334.171167 | F61: ='WRP '!E55 -> 15349.08 | H61: ='WRP '!G55 -> 0 | I61: ='WRP '!#REF! -> 
A62: HILLTOP | C62: ='Hilltop '!B56 -> 17280 | E62: ='Hilltop '!D56 -> 1431.660382 | F62: ='Hilltop '!E56 -> 16520.94667 | H62: ='Hilltop '!G56 -> 0 | I62: ='Hilltop '!H56 -> 0
A63: WEST 46TH | C63: ='west 46 '!B52 -> 5670 | E63: ='west 46 '!D52 -> 376.6666667 | F63: ='west 46 '!E52 -> 3576.04 | H63: ='west 46 '!G52 -> 0 | I63: ='west 46 '!#REF! -> 
A64: ARVADA COTTAGES | C64: ='Arvada Cottages '!B54 -> 21860 | E64: ='Arvada Cottages '!D54 -> 1460.833333 | F64: ='Arvada Cottages '!E54 -> 16476.64667 | H64: ='Arvada Cottages '!G54 -> 0 | I64: ='Arvada Cottages '!#REF! -> 
A65: ALLISON VILLAGE | C65: ='Allison Village'!B53 -> 47820 | E65: ='Allison Village'!D53 -> 3397.472762 | F65: ='Allison Village'!E53 -> 39166.24 | H65: ='Allison Village'!G53 -> 0 | I65: ='Allison Village'!#REF! -> 
A66: DISPERSED HOUSING | C66: =#REF! ->  | E66: =#REF! ->  | F66: =#REF! ->  | H66: =#REF! ->  | I66: =#REF! -> 
A68: TOTAL OPERATING | C68: ='Consolidated for board'!C61 -> 176970 | E68: ='Consolidated for board'!E61 -> 163829.7317 | F68: ='Consolidated for board'!F61 -> 13652.47764 | H68: ='Consolidated for board'!H61 -> 154844.8533 | I68: ='Consolidated for board'!I61 -> 117788.83
M70: =#REF!*5% -> 
A71: MAINTENANCE EXPENDITURES | M71: =#REF!*5% -> 
A72: ORCHARD VALLEY | C72: ='Orchard Valley'!B69 -> 33230 | E72: ='Orchard Valley'!D69 -> 5485.833333 | F72: ='Orchard Valley'!E69 -> 49951.46667 | H72: ='Orchard Valley'!G69 -> 0 | I72: ='Orchard Valley'!#REF! ->  | M72: =#REF!*5% -> 
A73: RESPITE | C73: =#REF! ->  | E73: =#REF! ->  | F73: =#REF! ->  | H73: =#REF! ->  | I73: =#REF! ->  | M73: =#REF!*5% -> 
A74: UPHAM | C74: =UPHAM!B68 -> 32930 | E74: =UPHAM!D68 -> 3978.315289 | F74: =UPHAM!E68 -> 27719.37333 | H74: =UPHAM!G68 -> 0 | I74: =UPHAM!#REF! ->  | M74: =#REF!*5% -> 
A75: WEST 40TH | C75: ='west 40'!B69 -> 22400 | E75: ='west 40'!D69 -> 2787.508889 | F75: ='west 40'!E69 -> 21140.30667 | H75: ='west 40'!G69 -> 0 | I75: ='west 40'!#REF! -> 
A76: WHEAT RIDGE PARK | C76: ='WRP '!B69 -> 44400 | E76: ='WRP '!D69 -> 4138.317778 | F76: ='WRP '!E69 -> 39293.77333 | H76: ='WRP '!G69 -> 0 | I76: ='WRP '!#REF! -> 
A77: HILLTOP | C77: ='Hilltop '!B69 -> 36240 | E77: ='Hilltop '!D69 -> 6284.137778 | F77: ='Hilltop '!E69 -> 49946.24 | H77: ='Hilltop '!G69 -> 0 | I77: ='Hilltop '!H69 -> 0 | M77: =#REF!*5% -> 
A78: WEST 46TH | C78: ='west 46 '!B65 -> 15910 | E78: ='west 46 '!D65 -> 2400.833333 | F78: ='west 46 '!E65 -> 17771.32 | H78: ='west 46 '!G65 -> 0 | I78: ='west 46 '!#REF! ->  | M78: =#REF!*5% -> 
A79: ARVADA COTTAGES | C79: ='Arvada Cottages '!B67 -> 46580 | E79: ='Arvada Cottages '!D67 -> 4181.666667 | F79: ='Arvada Cottages '!E67 -> 38159.77333 | H79: ='Arvada Cottages '!G67 -> 0 | I79: ='Arvada Cottages '!#REF! ->  | M79: =#REF!*5% -> 
A80: ALLISON VILLAGE | C80: ='Allison Village'!B67 -> 62020 | E80: ='Allison Village'!D67 -> 8299.2075 | F80: ='Allison Village'!E67 -> 72584.08 | H80: ='Allison Village'!G67 -> 0 | I80: ='Allison Village'!#REF! ->  | M80: =#REF!*5% -> 
A81: DISPERSED HOUSING | C81: =#REF! ->  | E81: =#REF! ->  | F81: =#REF! ->  | H81: =#REF! ->  | I81: =#REF! ->  | M81: =#REF!*5% -> 
A83: TOTAL MAINTENANCE | C83: ='Consolidated for board'!C74 -> 293710 | E83: ='Consolidated for board'!E74 -> 437529.8468 | F83: ='Consolidated for board'!F74 -> 37555.82057 | H83: ='Consolidated for board'!H74 -> 316566.3333 | I83: ='Consolidated for board'!I74 -> 237242.71 | M83: =#REF!*5% -> 
M84: =#REF!*5% -> 
A85: GENERAL | M85: =#REF!*5% -> 
A86: ORCHARD VALLEY | C86: ='Orchard Valley'!B80 -> 88825 | E86: ='Orchard Valley'!D80 -> 7473.333333 | F86: ='Orchard Valley'!E80 -> 84821.18667 | H86: ='Orchard Valley'!G80 -> 0 | I86: ='Orchard Valley'!#REF! ->  | M86: =#REF!*5% -> 
A87: RESPITE | C87: =#REF! ->  | E87: =#REF! ->  | F87: =#REF! ->  | H87: =#REF! ->  | I87: =#REF! -> 
A88: UPHAM | C88: =UPHAM!B79 -> 38950 | E88: =UPHAM!D79 -> 4025 | F88: =UPHAM!E79 -> 37957.2 | H88: =UPHAM!G79 -> 0 | I88: =UPHAM!#REF! -> 
A89: WEST 40TH | C89: ='west 40'!B80 -> 17890 | E89: ='west 40'!D80 -> 1561.666667 | F89: ='west 40'!E80 -> 15139.92 | H89: ='west 40'!G80 -> 0 | I89: ='west 40'!#REF! -> 
A90: WHEAT RIDGE PARK | C90: ='WRP '!B80 -> 49500 | E90: ='WRP '!D80 -> 4370 | F90: ='WRP '!E80 -> 47477.49333 | H90: ='WRP '!G80 -> 0 | I90: ='WRP '!#REF! ->  | M90: =#REF!*5% -> 
A91: HILLTOP | C91: ='Hilltop '!B80 -> 85510 | E91: ='Hilltop '!D80 -> 7334.166667 | F91: ='Hilltop '!E80 -> 82807.97333 | H91: ='Hilltop '!G80 -> 0 | I91: ='Hilltop '!H80 -> 0 | M91: =#REF!*5% -> 
A92: WEST 46TH | C92: ='west 46 '!B76 -> 22810 | E92: ='west 46 '!D76 -> 2064.166667 | F92: ='west 46 '!E76 -> 21240.50667 | H92: ='west 46 '!G76 -> 0 | I92: ='west 46 '!#REF! ->  | M92: =#REF!*5% -> 
A93: ARVADA COTTAGES | C93: ='Arvada Cottages '!B79 -> 67173 | E93: ='Arvada Cottages '!D79 -> 5808.333333 | F93: ='Arvada Cottages '!E79 -> 64492.56 | H93: ='Arvada Cottages '!G79 -> 0 | I93: ='Arvada Cottages '!#REF! ->  | M93: =#REF!*5% -> 
A94: ALLISON VILLAGE | C94: ='Allison Village'!B78 -> 97180 | E94: ='Allison Village'!D78 -> 8044.166667 | F94: ='Allison Village'!E78 -> 87435.97333 | H94: ='Allison Village'!G78 -> 0 | I94: ='Allison Village'!#REF! ->  | M94: =#REF!*5% -> 
A95: DISPERSED HOUSING | C95: =#REF! ->  | E95: =#REF! ->  | F95: =#REF! ->  | H95: =#REF! ->  | I95: =#REF! ->  | M95: =#REF!*5% -> 
A97: TOTAL GENERAL EXPENSE | C97: ='Consolidated for board'!C86 -> 467838 | E97: ='Consolidated for board'!E86 -> 488170 | F97: ='Consolidated for board'!F86 -> 40680.83333 | H97: ='Consolidated for board'!H86 -> 441372.8133 | I97: ='Consolidated for board'!I86 -> 342742.62 | M97: =#REF!*5% -> 
M98: =#REF!*5% -> 
A100: FINANCING | M100: =#REF!*5% -> 
A101: ORCHARD VALLEY | C101: ='Orchard Valley'!B85 -> 108800 | E101: ='Orchard Valley'!D85 -> 9066.666667 | F101: ='Orchard Valley'!E85 -> 120889.4667 | H101: ='Orchard Valley'!G85 -> 0 | I101: ='Orchard Valley'!#REF! -> 
A102: RESPITE | C102: =#REF! ->  | E102: =#REF! ->  | F102: =#REF! ->  | H102: =#REF! ->  | I102: =#REF! -> 
A103: UPHAM | C103: =UPHAM!B84 -> 0 | E103: =UPHAM!D84 -> 0 | F103: =UPHAM!E84 -> 0 | H103: =UPHAM!G84 -> No Mortgage | I103: =UPHAM!#REF! -> 
A104: WEST 40TH | C104: ='west 40'!B86 -> 23100 | E104: ='west 40'!D86 -> 1925 | F104: ='west 40'!E86 -> 23094.6 | H104: ='west 40'!G86 -> 0 | I104: ='west 40'!#REF! -> 
A105: WHEAT RIDGE PARK | C105: ='WRP '!B85 -> 43310 | E105: ='WRP '!D85 -> 3609.166667 | F105: ='WRP '!E85 -> 48123.33333 | H105: ='WRP '!G85 -> 0 | I105: ='WRP '!#REF! -> 
A106: HILLTOP | C106: ='Hilltop '!B85 -> 130060 | E106: ='Hilltop '!D85 -> 10838.33333 | F106: ='Hilltop '!E85 -> 130060 | H106: ='Hilltop '!G85 -> 0 | I106: ='Hilltop '!H85 -> 0
A107: WEST 46TH | C107: ='west 46 '!B81 -> 32580 | E107: ='west 46 '!D81 -> 2715 | F107: ='west 46 '!E81 -> 32580 | H107: ='west 46 '!G81 -> 0 | I107: ='west 46 '!#REF! -> 
A108: ARVADA COTTAGES | C108: ='Arvada Cottages '!B84 -> 142470 | E108: ='Arvada Cottages '!D84 -> 11872.5 | F108: ='Arvada Cottages '!E84 -> 142470 | H108: ='Arvada Cottages '!G84 -> 0 | I108: ='Arvada Cottages '!#REF! -> 
A109: ALLISON VILLAGE | C109: ='Allison Village'!B83 -> 123770 | E109: ='Allison Village'!D83 -> 10314.16667 | F109: ='Allison Village'!E83 -> 123770 | H109: ='Allison Village'!G83 -> 0 | I109: ='Allison Village'!#REF! -> 
A110: DISPERSED HOUSING | C110: =#REF! ->  | E110: =#REF! ->  | F110: =#REF! ->  | H110: =#REF! ->  | I110: =#REF! -> 
A112: TOTAL FINANCING | C112: ='Consolidated for board'!C99 -> 604090 | E112: ='Consolidated for board'!E99 -> 604090 | F112: ='Consolidated for board'!F99 -> 50340.83333 | H112: ='Consolidated for board'!H99 -> 620987.4 | I112: ='Consolidated for board'!I99 -> 501472.2 | M112: =#REF!*5% -> 
M113: =#REF!*5% -> 
A114: RESERVES | M114: =#REF!*5% -> 
A115: ORCHARD VALLEY | C115: ='Orchard Valley'!B89 -> 4800 | E115: ='Orchard Valley'!D89 -> 400 | F115: ='Orchard Valley'!E89 -> 4800 | H115: ='Orchard Valley'!G89 -> 0 | I115: ='Orchard Valley'!#REF! -> 
A116: RESPITE | C116: =#REF! ->  | E116: =#REF! ->  | F116: =#REF! ->  | H116: =#REF! ->  | I116: =#REF! -> 
A117: UPHAM | C117: =UPHAM!B88 -> 4800 | E117: =UPHAM!D88 -> 400 | F117: =UPHAM!E88 -> 4800 | H117: =UPHAM!G88 -> 0 | I117: =UPHAM!#REF! -> 
A118: WEST 40TH | C118: ='west 40'!B90 -> 3600 | E118: ='west 40'!D90 -> 300 | F118: ='west 40'!E90 -> 3600 | H118: ='west 40'!G90 -> 0 | I118: ='west 40'!#REF! -> 
A119: WHEAT RIDGE PARK | C119: ='WRP '!B89 -> 4800 | E119: ='WRP '!D89 -> 400 | F119: ='WRP '!E89 -> 4800 | H119: ='WRP '!G89 -> 0 | I119: ='WRP '!#REF! -> 
A120: HILLTOP | C120: ='Hilltop '!B89 -> 3600 | E120: ='Hilltop '!D89 -> 300 | F120: ='Hilltop '!E89 -> 3600 | H120: ='Hilltop '!G89 -> 0 | I120: ='Hilltop '!H89 -> 0
A121: WEST 46TH | C121: ='west 46 '!B85 -> 5400 | E121: ='west 46 '!D85 -> 450 | F121: ='west 46 '!E85 -> 5400 | H121: ='west 46 '!G85 -> 0 | I121: ='west 46 '!#REF! -> 
A122: ARVADA COTTAGES | C122: ='Arvada Cottages '!B88 -> 2400 | E122: ='Arvada Cottages '!D88 -> 200 | F122: ='Arvada Cottages '!E88 -> 2400 | H122: ='Arvada Cottages '!G88 -> 0 | I122: ='Arvada Cottages '!#REF! -> 
A123: ALLISON VILLAGE | C123: ='Allison Village'!B87 -> 15600 | E123: ='Allison Village'!D87 -> 1300 | F123: ='Allison Village'!E87 -> 15600 | H123: ='Allison Village'!G87 -> 0 | I123: ='Allison Village'!#REF! -> 
A124: DISPERSED HOUSING | C124: =#REF! ->  | E124: =#REF! ->  | F124: =#REF! ->  | H124: =#REF! ->  | I124: =#REF! -> 
M125: =#REF!*5% -> 
A126: TOTAL RESERVES | C126: ='Consolidated for board'!C111 -> 45000 | E126: ='Consolidated for board'!E111 -> 45000 | F126: ='Consolidated for board'!F111 -> 3750 | H126: ='Consolidated for board'!H111 -> 45000 | I126: ='Consolidated for board'!I111 -> 33750 | M126: =#REF!*5% -> 
M127: =#REF!*5% -> 
A128: CAPITAL EXPENDITURES | M128: =#REF!*5% -> 
A129: ORCHARD VALLEY | C129: ='Orchard Valley'!B99 -> 19100 | E129: ='Orchard Valley'!D99 -> 250 | F129: ='Orchard Valley'!E99 -> 42379.32 | H129: ='Orchard Valley'!G99 -> 0 | I129: ='Orchard Valley'!#REF! ->  | M129: =#REF!*5% -> 
A130: RESPITE | C130: =#REF! ->  | E130: =#REF! ->  | F130: =#REF! ->  | H130: =#REF! ->  | I130: =#REF! -> 
A131: UPHAM | C131: =UPHAM!B98 -> 11300 | E131: =UPHAM!D98 -> 0 | F131: =UPHAM!E98 -> 3991.48 | H131: =UPHAM!G98 -> 0 | I131: =UPHAM!#REF! -> 
A132: WEST 40TH | C132: ='west 40'!B100 -> 8700 | E132: ='west 40'!D100 -> 0 | F132: ='west 40'!E100 -> 6934.44 | H132: ='west 40'!G100 -> 0 | I132: ='west 40'!#REF! -> 
A133: WHEAT RIDGE PARK | C133: ='WRP '!B99 -> 16960 | E133: ='WRP '!D99 -> 0 | F133: ='WRP '!E99 -> 750.6666667 | H133: ='WRP '!G99 -> 0 | I133: ='WRP '!#REF! -> 
A134: HILLTOP | C134: ='Hilltop '!B99 -> 35050 | E134: ='Hilltop '!D99 -> 1891.666667 | F134: ='Hilltop '!E99 -> 8381.578889 | H134: ='Hilltop '!G99 -> 0 | I134: ='Hilltop '!H99 -> 0
A135: WEST 46TH | C135: ='west 46 '!B94 -> 12970 | E135: ='west 46 '!D94 -> 206.6666667 | F135: ='west 46 '!E94 -> 3045 | H135: ='west 46 '!G94 -> 0 | I135: ='west 46 '!#REF! -> 
A136: ARVADA COTTAGES | C136: ='Arvada Cottages '!B98 -> 14120 | E136: ='Arvada Cottages '!D98 -> 1849.166667 | F136: ='Arvada Cottages '!E98 -> 11506 | H136: ='Arvada Cottages '!G98 -> 0 | I136: ='Arvada Cottages '!#REF! ->  | M136: =#REF!*5% -> 
A137: ALLISON VILLAGE | C137: ='Allison Village'!B97 -> 17470 | E137: ='Allison Village'!D97 -> 458.3333333 | F137: ='Allison Village'!E97 -> 7531.777778 | H137: ='Allison Village'!G97 -> 0 | I137: ='Allison Village'!#REF! ->  | M137: =#REF!*5% -> 
A138: DISPERSED HOUSING | C138: =#REF! ->  | E138: =#REF! ->  | F138: =#REF! ->  | H138: =#REF! ->  | I138: =#REF! ->  | M138: =#REF!*5% -> 
A140: TOTAL CAPITAL EXP. | C140: ='Consolidated for board'!C123 -> 135670 | E140: ='Consolidated for board'!E123 -> 55870 | F140: ='Consolidated for board'!F123 -> 4655.833333 | H140: ='Consolidated for board'!H123 -> 84520.26333 | I140: ='Consolidated for board'!I123 -> 78411.32
A143: TOTAL EXPENDITURES | C143: =SUM(C140+C126+C112+C97+C83+C68+C54) -> 1931768 | E143: =SUM(E140+E126+E112+E97+E83+E68+E54) -> 2013930.309 | F143: =SUM(F140+F126+F112+F97+F83+F68+F54) -> 168922.5257 | H143: =SUM(H140+H126+H112+H97+H83+H68+H54) -> 1876276.077 | I143: =SUM(I140+I126+I112+I97+I83+I68+I54) -> 1471145.99
A145: NET GAIN/(LOSS) | C145: =SUM(C23-C143) -> -276548 | E145: =SUM(E23-E143) -> -380030.3085 | F145: =SUM(F23-F143) -> -33864.19238 | H145: =SUM(H23-H143) -> -266026.77 | I145: =SUM(I23-I143) -> -265058.74
A148: DEPRECIATION INCLUDED IN GENERAL EXP. | C148: ='Consolidated for board'!C131 -> 327211 | E148: ='Consolidated for board'!E131 -> 338260 | F148: ='Consolidated for board'!F131 -> 28188.33333 | H148: ='Consolidated for board'!H131 -> 325048.28 | I148: ='Consolidated for board'!I131 -> 240284.99
A150: NET INCOME(LOSS) AFTER DEPRCIATION | C150: =SUM(C145:C149) -> 50663 | E150: =SUM(E145:E149) -> -41770.30853 | F150: =SUM(F145:F149) -> -5675.859044 | H150: =SUM(H145:H149) -> 59021.51 | I150: =SUM(I145:I149) -> -24773.75

Sheet Consolidated for board
E2: JEFFCO HOUSING CORPORATION
E3: CONSOLIDATED
E4: FY 2016 OPERATING BUDGET
H6: Actual | I6: Actual
C7: Budget | E7: Budget | F7: Budget | I7: YTD
C8: FY 2015 | E8: FY 2016 | F8: FY 2016 | H8: FY 2015 | I8: FY 2015
C9: ANNUAL | E9: ANNUAL | F9: Monthly | H9: 12MO Estimate | I9: at 9/30/15
A11: OPERATING RECEIPTS-TOTAL
A12: ORCHARD VALLEY | C12: ='Orchard Valley'!B22 -> 288360 | E12: ='Orchard Valley'!C22 -> 288750 | F12: ='Orchard Valley'!D22 -> 24062.5 | H12: ='Orchard Valley'!E22 -> 291164.3067 | I12: ='Orchard Valley'!F22 -> 218373.23
A13: UPHAM & RESPITE | C13: =UPHAM!B22 -> 110200 | E13: =UPHAM!C22 -> 123330 | F13: =UPHAM!D22 -> 9177.5 | H13: =UPHAM!E22 -> 124075.4533 | I13: =UPHAM!F22 -> 93056.59
A14: WEST 40TH | C14: ='west 40'!B22 -> 77030 | E14: ='west 40'!C22 -> 75230 | F14: ='west 40'!D22 -> 6269.166667 | H14: ='west 40'!E22 -> 67333.26667 | I14: ='west 40'!F22 -> 50499.95
A15: WHEAT RIDGE PARK | C15: ='WRP '!B22 -> 169900 | E15: ='WRP '!C22 -> 163010 | F15: ='WRP '!D22 -> 13584.16667 | H15: ='WRP '!E22 -> 159028.8933 | I15: ='WRP '!F22 -> 119271.67
A16: HILLTOP | C16: ='Hilltop '!B23 -> 284630 | E16: ='Hilltop '!C23 -> 299610 | F16: ='Hilltop '!D23 -> 24967.5 | H16: ='Hilltop '!E23 -> 291359.6 | I16: ='Hilltop '!F23 -> 218519.7
A17: WEST 46TH | C17: ='west 46 '!B21 -> 88380 | E17: ='west 46 '!C21 -> 79680 | F17: ='west 46 '!D21 -> 6640 | H17: ='west 46 '!E21 -> 66842.6 | I17: ='west 46 '!F21 -> 50131.95
A18: ARVADA COTTAGES | C18: ='Arvada Cottages '!B20 -> 273750 | E18: ='Arvada Cottages '!C20 -> 251070 | F18: ='Arvada Cottages '!D20 -> 20922.5 | H18: ='Arvada Cottages '!E20 -> 270207.7067 | I18: ='Arvada Cottages '!F20 -> 202655.78
A19: ALLISON VILLAGE | C19: ='Allison Village'!B18 -> 362970 | E19: ='Allison Village'!C18 -> 353220 | F19: ='Allison Village'!D18 -> 29435 | H19: ='Allison Village'!E18 -> 340237.48 | I19: ='Allison Village'!F18 -> 253578.38
A21: TOTAL OPERATING RECEIPTS | C21: =SUM(C12:C19) -> 1655220 | E21: =SUM(E12:E19) -> 1633900 | F21: =SUM(F12:F19) -> 135058.3333 | H21: =SUM(H12:H19) -> 1610249.307 | I21: =SUM(I12:I19) -> 1206087.25
A23: OPERATING EXPENDITURES
A24: ORCHARD VALLEY | C24: ='Orchard Valley'!B32 -> 332155 | E24: ='Orchard Valley'!C32 -> 351540.3825 | F24: ='Orchard Valley'!D32 -> 29295.03188 | H24: ='Orchard Valley'!E32 -> 380268.9533 | I24: ='Orchard Valley'!F32 -> 285311.82
A25: UPHAM & RESPITE | C25: =UPHAM!B32 -> 124840 | E25: =UPHAM!C32 -> 140319.7835 | F25: =UPHAM!D32 -> 11693.31529 | H25: =UPHAM!E32 -> 110564.6933 | I25: =UPHAM!F32 -> 83759.81
A26: WEST 40TH | C26: ='west 40'!B32 -> 90140 | E26: ='west 40'!C32 -> 93400.12987 | F26: ='west 40'!D32 -> 7783.344156 | H26: ='west 40'!E32 -> 83036.05333 | I26: ='west 40'!F32 -> 61505.68
A27: WHEAT RIDGE PARK | C27: ='WRP '!B32 -> 196810 | E27: ='WRP '!C32 -> 189659.8673 | F27: ='WRP '!D32 -> 15804.98894 | H27: ='WRP '!E32 -> 177222.2 | I27: ='WRP '!F32 -> 137152.67
A28: HILLTOP | C28: ='Hilltop '!B33 -> 341390 | E28: ='Hilltop '!C33 -> 373009.7946 | F28: ='Hilltop '!D33 -> 31084.14955 | H28: ='Hilltop '!E33 -> 326322.3122 | I28: ='Hilltop '!F33 -> 269848.95
A29: WEST 46TH | C29: ='west 46 '!B31 -> 99870 | E29: ='west 46 '!C31 -> 104410.3467 | F29: ='west 46 '!D31 -> 8700.862222 | H29: ='west 46 '!E31 -> 88466.96 | I29: ='west 46 '!F31 -> 68537.24
A30: ARVADA COTTAGES | C30: ='Arvada Cottages '!B30 -> 322793 | E30: ='Arvada Cottages '!C30 -> 331699.8409 | F30: ='Arvada Cottages '!D30 -> 27641.65341 | H30: ='Arvada Cottages '!E30 -> 301896.5267 | I30: ='Arvada Cottages '!F30 -> 240505.16
A31: ALLISON VILLAGE | C31: ='Allison Village'!B28 -> 423770 | E31: ='Allison Village'!C28 -> 429890.1631 | F31: ='Allison Village'!D28 -> 36919.18026 | H31: ='Allison Village'!E28 -> 408498.3778 | I31: ='Allison Village'!F28 -> 324524.66
A33: TOTAL OPERATING EXPENSE | C33: =SUM(C24:C32) -> 1931768 | E33: =SUM(E24:E32) -> 2013930.309 | F33: =SUM(F24:F32) -> 168922.5257 | H33: =I33/9 -> 163460.6656 | I33: =SUM(I24:I32) -> 1471145.99
A34: NET INCOME | C34: =SUM(C21-C33) -> -276548 | E34: =SUM(E21-E33) -> -380030.3085 | F34: =SUM(F21-F33) -> -33864.19238 | H34: =SUM(H21-H33) -> 1446788.641 | I34: =SUM(I21-I33) -> -265058.74
A38: ADMINISTRATIVE EXPENDITURES
A40: ORCHARD VALLEY | C40: ='Orchard Valley'!B49 -> 33910 | E40: ='Orchard Valley'!C49 -> 34700.30253 | F40: ='Orchard Valley'!D49 -> 2891.691878 | H40: ='Orchard Valley'!E49 -> 34509.34667 | I40: ='Orchard Valley'!F49 -> 25882.01
A41: UPHAM & RESPITE | C41: =UPHAM!B48 -> 21630 | E41: =UPHAM!C48 -> 24460 | F41: =UPHAM!D48 -> 2038.333333 | H41: =UPHAM!E48 -> 22976.56 | I41: =UPHAM!F48 -> 17232.42
A42: WEST 40TH | C42: ='west 40'!B48 -> 5200 | E42: ='west 40'!C48 -> 6440.0232 | F42: ='west 40'!D48 -> 536.6686 | H42: ='west 40'!E48 -> 5409.133333 | I42: ='west 40'!F48 -> 4056.85
A43: WHEAT RIDGE PARK | C43: ='WRP '!B48 -> 21470 | E43: ='WRP '!C48 -> 23440 | F43: ='WRP '!D48 -> 1953.333333 | H43: ='WRP '!E48 -> 21427.85333 | I43: ='WRP '!F48 -> 16070.89
A44: HILLTOP | C44: ='Hilltop '!B49 -> 33650 | E44: ='Hilltop '!C49 -> 36050.21667 | F44: ='Hilltop '!D49 -> 3004.184722 | H44: ='Hilltop '!E49 -> 35005.57333 | I44: ='Hilltop '!F49 -> 26254.18
A45: WEST 46TH | C45: ='west 46 '!B45 -> 4530 | E45: ='west 46 '!C45 -> 5850.346667 | F45: ='west 46 '!D45 -> 487.5288889 | H45: ='west 46 '!E45 -> 4854.093333 | I45: ='west 46 '!F45 -> 3640.57
A46: ARVADA COTTAGES | C46: ='Arvada Cottages '!B47 -> 28190 | E46: ='Arvada Cottages '!C47 -> 27229.84093 | F46: ='Arvada Cottages '!D47 -> 2269.153411 | H46: ='Arvada Cottages '!E47 -> 26391.54667 | I46: ='Arvada Cottages '!F47 -> 19793.66
A47: ALLISON VILLAGE | C47: ='Allison Village'!B46 -> 59910 | E47: ='Allison Village'!C46 -> 61270 | F47: ='Allison Village'!D46 -> 5105.833333 | H47: ='Allison Village'!E46 -> 62410.30667 | I47: ='Allison Village'!F46 -> 46807.73
A49: TOTAL ADMINISTRATIVE | C49: =SUM(C40:C48) -> 208490 | E49: =SUM(E40:E48) -> 219440.73 | F49: =SUM(F40:F48) -> 18286.7275 | H49: =SUM(H40:H48) -> 212984.4133 | I49: =SUM(I40:I48) -> 159738.31
A51: OPERATING EXPENDITURES
A52: ORCHARD VALLEY | C52: ='Orchard Valley'!B56 -> 43490 | E52: ='Orchard Valley'!C56 -> 44730.08 | F52: ='Orchard Valley'!D56 -> 3727.506667 | H52: ='Orchard Valley'!E56 -> 42918.16667 | I52: ='Orchard Valley'!F56 -> 31049.75
A53: UPHAM & RESPITE | C53: =UPHAM!B55 -> 15230 | E53: =UPHAM!C55 -> 15020 | F53: =UPHAM!D55 -> 1251.666667 | H53: =UPHAM!E55 -> 13120.08 | I53: =UPHAM!F55 -> 10449.06
A54: WEST 40TH | C54: ='west 40'!B55 -> 9250 | E54: ='west 40'!C55 -> 8070 | F54: ='west 40'!D55 -> 672.5 | H54: ='west 40'!E55 -> 7717.653333 | I54: ='west 40'!F55 -> 6136.24
A55: WHEAT RIDGE PARK | C55: ='WRP '!B55 -> 16370 | E55: ='WRP '!C55 -> 16010.054 | F55: ='WRP '!D55 -> 1334.171167 | H55: ='WRP '!E55 -> 15349.08 | I55: ='WRP '!F55 -> 11547.68
A56: HILLTOP | C56: ='Hilltop '!B56 -> 17280 | E56: ='Hilltop '!C56 -> 17179.92459 | F56: ='Hilltop '!D56 -> 1431.660382 | H56: ='Hilltop '!E56 -> 16520.94667 | I56: ='Hilltop '!F56 -> 13859.96
A57: WEST 46TH | C57: ='west 46 '!B52 -> 5670 | E57: ='west 46 '!C52 -> 4520 | F57: ='west 46 '!D52 -> 376.6666667 | H57: ='west 46 '!E52 -> 3576.04 | I57: ='west 46 '!F52 -> 3018.03
A58: ARVADA COTTAGES | C58: ='Arvada Cottages '!B54 -> 21860 | E58: ='Arvada Cottages '!C54 -> 17530 | F58: ='Arvada Cottages '!D54 -> 1460.833333 | H58: ='Arvada Cottages '!E54 -> 16476.64667 | I58: ='Arvada Cottages '!F54 -> 11247.38
A59: ALLISON VILLAGE | C59: ='Allison Village'!B53 -> 47820 | E59: ='Allison Village'!C53 -> 40769.67315 | F59: ='Allison Village'!D53 -> 3397.472762 | H59: ='Allison Village'!E53 -> 39166.24 | I59: ='Allison Village'!F53 -> 30480.73
A61: TOTAL OPERATING | C61: =SUM(C52:C60) -> 176970 | E61: =SUM(E52:E60) -> 163829.7317 | F61: =SUM(F52:F60) -> 13652.47764 | H61: =SUM(H52:H60) -> 154844.8533 | I61: =SUM(I52:I60) -> 117788.83
M63: =#REF!*5% -> 
A64: MAINTENANCE EXPENDITURES | M64: =#REF!*5% -> 
A65: ORCHARD VALLEY | C65: ='Orchard Valley'!B69 -> 33230 | E65: ='Orchard Valley'!C69 -> 65830 | F65: ='Orchard Valley'!D69 -> 5485.833333 | H65: ='Orchard Valley'!E69 -> 49951.46667 | I65: ='Orchard Valley'!F69 -> 37463.6 | M65: =#REF!*5% -> 
A66: UPHAM & RESPITE | C66: =UPHAM!B68 -> 32930 | E66: =UPHAM!C68 -> 47739.78347 | F66: =UPHAM!D68 -> 3978.315289 | H66: =UPHAM!E68 -> 27719.37333 | I66: =UPHAM!F68 -> 20789.53 | M66: =#REF!*5% -> 
A67: WEST 40TH | C67: ='west 40'!B69 -> 22400 | E67: ='west 40'!C69 -> 33450.10667 | F67: ='west 40'!D69 -> 2787.508889 | H67: ='west 40'!E69 -> 21140.30667 | I67: ='west 40'!F69 -> 15855.23
A68: WHEAT RIDGE PARK | C68: ='WRP '!B69 -> 44400 | E68: ='WRP '!C69 -> 49659.81333 | F68: ='WRP '!D69 -> 4138.317778 | H68: ='WRP '!E69 -> 39293.77333 | I68: ='WRP '!F69 -> 29470.33
A69: HILLTOP | C69: ='Hilltop '!B69 -> 36240 | E69: ='Hilltop '!C69 -> 75409.65333 | F69: ='Hilltop '!D69 -> 6284.137778 | H69: ='Hilltop '!E69 -> 49946.24 | I69: ='Hilltop '!F69 -> 37452.34 | M69: =#REF!*5% -> 
A70: WEST 46TH | C70: ='west 46 '!B65 -> 15910 | E70: ='west 46 '!C65 -> 28810 | F70: ='west 46 '!D65 -> 2400.833333 | H70: ='west 46 '!E65 -> 17771.32 | I70: ='west 46 '!F65 -> 13328.49 | M70: =#REF!*5% -> 
A71: ARVADA COTTAGES | C71: ='Arvada Cottages '!B67 -> 46580 | E71: ='Arvada Cottages '!C67 -> 50180 | F71: ='Arvada Cottages '!D67 -> 4181.666667 | H71: ='Arvada Cottages '!E67 -> 38159.77333 | I71: ='Arvada Cottages '!F67 -> 28619.83 | M71: =#REF!*5% -> 
A72: ALLISON VILLAGE | C72: ='Allison Village'!B67 -> 62020 | E72: ='Allison Village'!C67 -> 86450.49 | F72: ='Allison Village'!D67 -> 8299.2075 | H72: ='Allison Village'!E67 -> 72584.08 | I72: ='Allison Village'!F67 -> 54263.36 | M72: =#REF!*5% -> 
A74: TOTAL MAINTENANCE | C74: =SUM(C65:C73) -> 293710 | E74: =SUM(E65:E73) -> 437529.8468 | F74: =SUM(F65:F73) -> 37555.82057 | H74: =SUM(H65:H73) -> 316566.3333 | I74: =SUM(I65:I73) -> 237242.71 | M74: =#REF!*5% -> 
M75: =#REF!*5% -> 
A76: GENERAL | M76: =#REF!*5% -> 
A77: ORCHARD VALLEY | C77: ='Orchard Valley'!B80 -> 88825 | E77: ='Orchard Valley'!C80 -> 89680 | F77: ='Orchard Valley'!D80 -> 7473.333333 | H77: ='Orchard Valley'!E80 -> 84821.18667 | I77: ='Orchard Valley'!F80 -> 64864.87 | M77: =#REF!*5% -> 
A78: UPHAM & RESPITE | C78: =UPHAM!B79 -> 38950 | E78: =UPHAM!C79 -> 48300 | F78: =UPHAM!D79 -> 4025 | H78: =UPHAM!E79 -> 37957.2 | I78: =UPHAM!F79 -> 28695.19
A79: WEST 40TH | C79: ='west 40'!B80 -> 17890 | E79: ='west 40'!C80 -> 18740 | F79: ='west 40'!D80 -> 1561.666667 | H79: ='west 40'!E80 -> 15139.92 | I79: ='west 40'!F80 -> 11975.77
A80: WHEAT RIDGE PARK | C80: ='WRP '!B80 -> 49500 | E80: ='WRP '!C80 -> 52440 | F80: ='WRP '!D80 -> 4370 | H80: ='WRP '!E80 -> 47477.49333 | I80: ='WRP '!F80 -> 38112.27 | M80: =#REF!*5% -> 
A81: HILLTOP | C81: ='Hilltop '!B80 -> 85510 | E81: ='Hilltop '!C80 -> 88010 | F81: ='Hilltop '!D80 -> 7334.166667 | H81: ='Hilltop '!E80 -> 82807.97333 | I81: ='Hilltop '!F80 -> 64078.76 | M81: =#REF!*5% -> 
A82: WEST 46TH | C82: ='west 46 '!B76 -> 22810 | E82: ='west 46 '!C76 -> 24770 | F82: ='west 46 '!D76 -> 2064.166667 | H82: ='west 46 '!E76 -> 21240.50667 | I82: ='west 46 '!F76 -> 17349.95 | M82: =#REF!*5% -> 
A83: ARVADA COTTAGES | C83: ='Arvada Cottages '!B79 -> 67173 | E83: ='Arvada Cottages '!C79 -> 69700 | F83: ='Arvada Cottages '!D79 -> 5808.333333 | H83: ='Arvada Cottages '!E79 -> 64492.56 | I83: ='Arvada Cottages '!F79 -> 50149.25 | M83: =#REF!*5% -> 
A84: ALLISON VILLAGE | C84: ='Allison Village'!B78 -> 97180 | E84: ='Allison Village'!C78 -> 96530 | F84: ='Allison Village'!D78 -> 8044.166667 | H84: ='Allison Village'!E78 -> 87435.97333 | I84: ='Allison Village'!F78 -> 67516.56 | M84: =#REF!*5% -> 
A86: TOTAL GENERAL EXPENSE | C86: =SUM(C77:C85) -> 467838 | E86: =SUM(E77:E85) -> 488170 | F86: =SUM(F77:F85) -> 40680.83333 | H86: =SUM(H77:H85) -> 441372.8133 | I86: =SUM(I77:I85) -> 342742.62 | M86: =#REF!*5% -> 
M87: =#REF!*5% -> 
A89: FINANCING | M89: =#REF!*5% -> 
A90: ORCHARD VALLEY | C90: ='Orchard Valley'!B85 -> 108800 | E90: ='Orchard Valley'!C85 -> 108800 | F90: ='Orchard Valley'!D85 -> 9066.666667 | H90: ='Orchard Valley'!E85 -> 120889.4667 | I90: ='Orchard Valley'!F85 -> 90667.1
A91: UPHAM & RESPITE | C91: =UPHAM!B84 -> 0 | E91: =UPHAM!C84 -> 0 | F91: =UPHAM!D84 -> 0 | H91: =UPHAM!E84 -> 0 | I91: =UPHAM!F84 -> 0
A92: WEST 40TH | C92: ='west 40'!B86 -> 23100 | E92: ='west 40'!C86 -> 23100 | F92: ='west 40'!D86 -> 1925 | H92: ='west 40'!E86 -> 23094.6 | I92: ='west 40'!F86 -> 17320.95
A93: WHEAT RIDGE PARK | C93: ='WRP '!B85 -> 43310 | E93: ='WRP '!C85 -> 43310 | F93: ='WRP '!D85 -> 3609.166667 | H93: ='WRP '!E85 -> 48123.33333 | I93: ='WRP '!F85 -> 36092.5
A94: HILLTOP | C94: ='Hilltop '!B85 -> 130060 | E94: ='Hilltop '!C85 -> 130060 | F94: ='Hilltop '!D85 -> 10838.33333 | H94: ='Hilltop '!E85 -> 130060 | I94: ='Hilltop '!F85 -> 108379.5
A95: WEST 46TH | C95: ='west 46 '!B81 -> 32580 | E95: ='west 46 '!C81 -> 32580 | F95: ='west 46 '!D81 -> 2715 | H95: ='west 46 '!E81 -> 32580 | I95: ='west 46 '!F81 -> 27150.2
A96: ARVADA COTTAGES | C96: ='Arvada Cottages '!B84 -> 142470 | E96: ='Arvada Cottages '!C84 -> 142470 | F96: ='Arvada Cottages '!D84 -> 11872.5 | H96: ='Arvada Cottages '!E84 -> 142470 | I96: ='Arvada Cottages '!F84 -> 118726.95
A97: ALLISON VILLAGE | C97: ='Allison Village'!B83 -> 123770 | E97: ='Allison Village'!C83 -> 123770 | F97: ='Allison Village'!D83 -> 10314.16667 | H97: ='Allison Village'!E83 -> 123770 | I97: ='Allison Village'!F83 -> 103135
A99: TOTAL FINANCING | C99: =SUM(C90:C98) -> 604090 | E99: =SUM(E90:E98) -> 604090 | F99: =SUM(F90:F98) -> 50340.83333 | H99: =SUM(H90:H98) -> 620987.4 | I99: =SUM(I90:I98) -> 501472.2 | M99: =#REF!*5% -> 
M100: =#REF!*5% -> 
A101: RESERVES | M101: =#REF!*5% -> 
A102: ORCHARD VALLEY | C102: ='Orchard Valley'!B89 -> 4800 | E102: ='Orchard Valley'!C89 -> 4800 | F102: ='Orchard Valley'!D89 -> 400 | H102: ='Orchard Valley'!E89 -> 4800 | I102: ='Orchard Valley'!F89 -> 3600
A103: UPHAM & RESPITE | C103: =UPHAM!B88 -> 4800 | E103: =UPHAM!C88 -> 4800 | F103: =UPHAM!D88 -> 400 | H103: =UPHAM!E88 -> 4800 | I103: =UPHAM!F88 -> 3600
A104: WEST 40TH | C104: ='west 40'!B90 -> 3600 | E104: ='west 40'!C90 -> 3600 | F104: ='west 40'!D90 -> 300 | H104: ='west 40'!E90 -> 3600 | I104: ='west 40'!F90 -> 2700
A105: WHEAT RIDGE PARK | C105: ='WRP '!B89 -> 4800 | E105: ='WRP '!C89 -> 4800 | F105: ='WRP '!D89 -> 400 | H105: ='WRP '!E89 -> 4800 | I105: ='WRP '!F89 -> 3600
A106: HILLTOP | C106: ='Hilltop '!B89 -> 3600 | E106: ='Hilltop '!C89 -> 3600 | F106: ='Hilltop '!D89 -> 300 | H106: ='Hilltop '!E89 -> 3600 | I106: ='Hilltop '!F89 -> 2700
A107: WEST 46TH | C107: ='west 46 '!B85 -> 5400 | E107: ='west 46 '!C85 -> 5400 | F107: ='west 46 '!D85 -> 450 | H107: ='west 46 '!E85 -> 5400 | I107: ='west 46 '!F85 -> 4050
A108: ARVADA COTTAGES | C108: ='Arvada Cottages '!B88 -> 2400 | E108: ='Arvada Cottages '!C88 -> 2400 | F108: ='Arvada Cottages '!D88 -> 200 | H108: ='Arvada Cottages '!E88 -> 2400 | I108: ='Arvada Cottages '!F88 -> 1800
A109: ALLISON VILLAGE | C109: ='Allison Village'!B87 -> 15600 | E109: ='Allison Village'!C87 -> 15600 | F109: ='Allison Village'!D87 -> 1300 | H109: ='Allison Village'!E87 -> 15600 | I109: ='Allison Village'!F87 -> 11700
M110: =#REF!*5% -> 
A111: TOTAL RESERVES | C111: =SUM(C102:C110) -> 45000 | E111: =SUM(E102:E110) -> 45000 | F111: =SUM(F102:F110) -> 3750 | H111: =SUM(H102:H110) -> 45000 | I111: =SUM(I102:I110) -> 33750 | M111: =#REF!*5% -> 
M112: =#REF!*5% -> 
A113: CAPITAL EXPENDITURES | M113: =#REF!*5% -> 
A114: ORCHARD VALLEY | C114: ='Orchard Valley'!B99 -> 19100 | E114: ='Orchard Valley'!C99 -> 3000 | F114: ='Orchard Valley'!D99 -> 250 | H114: ='Orchard Valley'!E99 -> 42379.32 | I114: ='Orchard Valley'!F99 -> 31784.49 | M114: =#REF!*5% -> 
A115: UPHAM & RESPITE | C115: =UPHAM!B98 -> 11300 | E115: =UPHAM!C98 -> 0 | F115: =UPHAM!D98 -> 0 | H115: =UPHAM!E98 -> 3991.48 | I115: =UPHAM!F98 -> 2993.61
A116: WEST 40TH | C116: ='west 40'!B100 -> 8700 | E116: ='west 40'!C100 -> 0 | F116: ='west 40'!D100 -> 0 | H116: ='west 40'!E100 -> 6934.44 | I116: ='west 40'!F100 -> 3460.64
A117: WHEAT RIDGE PARK | C117: ='WRP '!B99 -> 16960 | E117: ='WRP '!C99 -> 0 | F117: ='WRP '!D99 -> 0 | H117: ='WRP '!E99 -> 750.6666667 | I117: ='WRP '!F99 -> 2259
A118: HILLTOP | C118: ='Hilltop '!B99 -> 35050 | E118: ='Hilltop '!C99 -> 22700 | F118: ='Hilltop '!D99 -> 1891.666667 | H118: ='Hilltop '!E99 -> 8381.578889 | I118: ='Hilltop '!F99 -> 17124.21
A119: WEST 46TH | C119: ='west 46 '!B94 -> 12970 | E119: ='west 46 '!C94 -> 2480 | F119: ='west 46 '!D94 -> 206.6666667 | H119: ='west 46 '!E94 -> 3045 | I119: ='west 46 '!F94 -> 0
A120: ARVADA COTTAGES | C120: ='Arvada Cottages '!B98 -> 14120 | E120: ='Arvada Cottages '!C98 -> 22190 | F120: ='Arvada Cottages '!D98 -> 1849.166667 | H120: ='Arvada Cottages '!E98 -> 11506 | I120: ='Arvada Cottages '!F98 -> 10168.09 | M120: =#REF!*5% -> 
A121: ALLISON VILLAGE | C121: ='Allison Village'!B97 -> 17470 | E121: ='Allison Village'!C97 -> 5500 | F121: ='Allison Village'!D97 -> 458.3333333 | H121: ='Allison Village'!E97 -> 7531.777778 | I121: ='Allison Village'!F97 -> 10621.28 | M121: =#REF!*5% -> 
A123: TOTAL CAPITAL EXP. | C123: =SUM(C114:C122) -> 135670 | E123: =SUM(E114:E122) -> 55870 | F123: =SUM(F114:F122) -> 4655.833333 | H123: =SUM(H114:H122) -> 84520.26333 | I123: =SUM(I114:I122) -> 78411.32
A126: TOTAL EXPENDITURES | C126: =SUM(C123+C111+C99+C86+C74+C61+C49) -> 1931768 | E126: =SUM(E123+E111+E99+E86+E74+E61+E49) -> 2013930.309 | F126: =SUM(F123+F111+F99+F86+F74+F61+F49) -> 168922.5257 | H126: =SUM(H123+H111+H99+H86+H74+H61+H49) -> 1876276.077 | I126: =SUM(I123+I111+I99+I86+I74+I61+I49) -> 1471145.99
A128: NET GAIN/(LOSS) | C128: =SUM(C21-C126) -> -276548 | E128: =SUM(E21-E126) -> -380030.3085 | F128: =SUM(F21-F126) -> -33864.19238 | H128: =SUM(H21-H126) -> -266026.77 | I128: =SUM(I21-I126) -> -265058.74
A131: DEPRECIATION INCLUDED IN GENERAL EXP. | C131: ='Orchard Valley'!B79+UPHAM!B78+'west 40'!B79+'WRP '!B79+'Hilltop '!B79+'west 46 '!B75+'Arvada Cottages '!B78+'Allison Village'!B77 -> 327211 | E131: ='Orchard Valley'!C79+UPHAM!C78+'west 40'!C79+'WRP '!C79+'Hilltop '!C79+'west 46 '!C75+'Arvada Cottages '!C78+'Allison Village'!C77 -> 338260 | F131: ='Orchard Valley'!D79+UPHAM!D78+'west 40'!D79+'WRP '!D79+'Hilltop '!D79+'west 46 '!D75+'Arvada Cottages '!D78+'Allison Village'!D77 -> 28188.33333 | H131: ='Orchard Valley'!E79+UPHAM!E78+'west 40'!E79+'WRP '!E79+'Hilltop '!E79+'west 46 '!E75+'Arvada Cottages '!E78+'Allison Village'!E77 -> 325048.28 | I131: ='Orchard Valley'!F79+UPHAM!F78+'west 40'!F79+'WRP '!F79+'Hilltop '!F79+'west 46 '!F75+'Arvada Cottages '!F78+'Allison Village'!F77 -> 240284.99
A133: NET INCOME(LOSS) AFTER DEPRCIATION | C133: =SUM(C128:C132) -> 50663 | E133: =SUM(E128:E132) -> -41770.30853 | F133: =SUM(F128:F132) -> -5675.859044 | H133: =SUM(H128:H132) -> 59021.51 | I133: =SUM(I128:I132) -> -24773.75

Sheet Orchard Valley
C6: JEFFCO HOUSING CORPORATION
C7: ORCHARD VALLEY APARTMENTS | G7: On 10/2015 Replacement Reserves $83,847.60
C8: FY 2016 OPERATING BUDGET | G8: Residual Receipts Reserve $58,826.63
G9: Together total $142,674.23
B10: Budget | C10: Budget | D10: Budget | F10: Actual
F11: YTD | G11: 3% increase over 12/31/2015 potential estimate
B12: FY 2015 | C12: FY 2016 | D12: FY 2016 | E12: FY 2015 | F12: FY 2015 | G12: unless otherwise noted
A13: OPERATING RECEIPTS | B13: ANNUAL | C13: ANNUAL | D13: Monthly | E13: 12MO Estimate | F13: at 9/30/15
A15: RENTAL INCOME | B15: 292800 | C15: 293100 | D15: =C15/12 -> 24425 | E15: =F15/9*12 -> 292766.6667 | F15: 219575
A16: VACANCIES | B16: -5850 | C16: -5860 | D16: -488.3333333 | E16: =F16/9*12 -> -3943.92 | F16: -2957.94 | G16: 2% of Rental Income
A17: INTEREST INCOME | B17: 20 | C17: 30 | D17: 2.5 | E17: =F17/9*12 -> 28.53333333 | F17: 21.4
A18: LAUNDRY INCOME( Laundry) | B18: 1200 | C18: 1200 | D18: 100 | E18: 1166.986667 | F18: 875.24
A19: NSF & LATE CHARGES | B19: 140 | C19: 200 | D19: 16.66666667 | E19: 194.6666667 | F19: 146
A20: OTHER INCOME | B20: 50 | C20: 80 | D20: 6.666666667 | E20: 951.3733333 | F20: 713.53 | G20: Estimate (2015 YTD included one time items) | I20: 2015 includes $450 donation mile hi, $178 L Jaster
A22: TOTAL OPERATING RECEIPTS | B22: =SUM(B15:B20) -> 288360 | C22: =SUM(C15:C20) -> 288750 | D22: =SUM(D15:D20) -> 24062.5 | E22: =SUM(E15:E20) -> 291164.3067 | F22: =SUM(F15:F20) -> 218373.23
A24: OPERATING EXPENDITURES
A25: ADMINISTRATIVE | B25: =B49 -> 33910 | C25: =C49 -> 34700.30253 | D25: =D49 -> 2891.691878 | E25: =E49 -> 34509.34667 | F25: =F49 -> 25882.01
A26: OPERATING | B26: =B56 -> 43490 | C26: =C56 -> 44730.08 | D26: =D56 -> 3727.506667 | E26: =E56 -> 42918.16667 | F26: =F56 -> 31049.75
A27: MAINTENANCE | B27: =B69 -> 33230 | C27: =C69 -> 65830 | D27: =D69 -> 5485.833333 | E27: =E69 -> 49951.46667 | F27: =F69 -> 37463.6
A28: GENERAL | B28: =B80 -> 88825 | C28: =C80 -> 89680 | D28: =D80 -> 7473.333333 | E28: =E80 -> 84821.18667 | F28: =F80 -> 64864.87
A29: FINANCING | B29: =B85 -> 108800 | C29: =C85 -> 108800 | D29: =D85 -> 9066.666667 | E29: =E85 -> 120889.4667 | F29: =F85 -> 90667.1
A30: RESERVES | B30: =B89 -> 4800 | C30: =C89 -> 4800 | D30: =D89 -> 400 | E30: =E89 -> 4800 | F30: =F89 -> 3600
A31: CAPITAL EXPENSE | B31: =B99 -> 19100 | C31: =C99 -> 3000 | D31: =D99 -> 250 | E31: =E99 -> 42379.32 | F31: =F99 -> 31784.49
A32: TOTAL OPERATING EXPENSE | B32: =SUM(B25:B31) -> 332155 | C32: =SUM(C25:C31) -> 351540.3825 | D32: =SUM(D25:D31) -> 29295.03188 | E32: =SUM(E25:E31) -> 380268.9533 | F32: =SUM(F25:F31) -> 285311.82
A33: NET INCOME | B33: =SUM(B22-B32) -> -43795 | C33: =SUM(C22-C32) -> -62790.38253 | D33: =SUM(D22-D32) -> -5232.531878 | E33: =SUM(E22-E32) -> -89104.64667 | F33: =SUM(F22-F32) -> -66938.59
A36: ADMINISTRATIVE EXPENDITURES
A38: OFFICE SALARIES | B38: 12050 | C38: 10590 | D38: =C38/12 -> 882.5 | E38: =F38/9*12 -> 12616 | F38: 9462 | G38: Reallocation of Salaries reduced $2400 yr move to Harlan St Apts
A39: OFFICE SUPPLIES | B39: 240 | C39: 250 | D39: =C39/12 -> 20.83333333 | E39: =F39/9*12 -> 240.88 | F39: 180.66
A40: DUES & MTG EXPENSE | B40: 200 | C40: 110 | D40: 9.166666667 | E40: =F40/9*12 -> 106.2666667 | F40: 79.7
A41: REAL ESTATE/TENANT SERVS | B41: 0 | C41: 60 | D41: =C41/12 -> 5 | E41: =F41/9*12 -> 55.4 | F41: 41.55
A42: MANAGEMENT FEE | B42: 14420 | C42: 14440 | D42: 1203.333333 | E42: 14556.8 | F42: 10917.6 | G42: 5% of total income minus interest
A43: LEGAL | B43: 350 | C43: 420 | D43: 35 | E43: 0 | F43: 0 | G43: One legal fee & sheriff
A44: ACCOUNTING/AUDIT | B44: 2780 | C44: 3590 | D44: 299.1666667 | E44: 3482.586667 | F44: 2611.94
A45: TELEPHONE | B45: 1540 | C45: 1260 | D45: 105 | E45: 1221.826667 | F45: 916.37
A46: COMPUTER EXPENSES | B46: 0 | C46: 1680 | D46: 140 | E46: 0 | F46: 0 | G46: Anchor Network 2016 @3% of contract $1242. and new server @ 3% 433.50
A47: MISC. ADMIN. EXPENSE | B47: 1220 | C47: =SUM(E47*1.03) -> 1350.302533 | D47: 112.5252111 | E47: 1310.973333 | F47: 983.23
A48: TRAVEL | B48: 1110 | C48: 950 | D48: 79.16666667 | E48: 918.6133333 | F48: 688.96
A49: TOTAL ADMINISTRATIVE | B49: =SUM(B38:B48) -> 33910 | C49: =SUM(C38:C48) -> 34700.30253 | D49: =SUM(D38:D48) -> 2891.691878 | E49: =SUM(E38:E48) -> 34509.34667 | F49: =SUM(F38:F48) -> 25882.01
A51: OPERATING EXPENDITURES | G51: Rate Increases for 2015/16 provided from Xcel Energy/Denver Water/Arvada
A52: ELECTRIC | B52: 21180 | C52: 21840 | D52: =C52/12 -> 1820 | E52: =F52/9*12 -> 21020.73333 | F52: 15765.55 | G52: 3.9%
A53: WATER | B53: 7070 | C53: 7230 | D53: =C53/12 -> 602.5 | E53: 6954.5 | F53: 4077 | G53: 4.0.% (2015 actual increased to estimate semi monthly billings)
A54: GAS | B54: 13220 | C54: =SUM(E54*1.05) -> 12330.08 | D54: =C54/12 -> 1027.506667 | E54: 11742.93333 | F54: 8807.2 | G54: 5.%
A55: SEWER | B55: 2020 | C55: 3330 | D55: =C55/12 -> 277.5 | E55: 3200 | F55: 2400 | G55: 4.% - Billed Quarterly (raised 60% in 2015 over billings from 2014)
A56: TOTAL OPERATING | B56: =SUM(B52:B55) -> 43490 | C56: =SUM(C52:C55) -> 44730.08 | D56: =SUM(D52:D55) -> 3727.506667 | E56: =SUM(E52:E55) -> 42918.16667 | F56: =SUM(F52:F55) -> 31049.75
A58: MAINTENANCE EXPENDITURES
A59: JANITORIAL CONTRACT(Supply) | B59: 2500 | C59: 2580 | D59: =C59/12 -> 215 | E59: =F59/9*12 -> 2786.213333 | F59: 2089.66 | G59: 3% & Clean Laundry Rooms $100month($1200yr) - $1300 for turnovers
A60: EXTERMINATING CONTRACT | B60: 1080 | C60: 1080 | D60: 90 | E60: 725.3333333 | F60: 544 | G60: 3% +Previous @ $75 month (900.) plus one unit bb spray treatment $150
A61: TRASH REMOVAL | B61: 2010 | C61: 2010 | D61: 167.5 | E61: 1947.2 | F61: 1460.4
A62: GROUNDS CONTRACT & SUPPLIES | B62: 5250 | C62: 5560 | D62: 463.3333333 | E62: 5540 | F62: 4155 | G62: 3% +$140 week April-Oct (30wks=$4200.) +$400 Sprinkler & $800 add cleanup.
A63: REPAIR MATERIALS | B63: 5450 | C63: 13000 | D63: 1083.333333 | E63: 11272.4 | F63: 8454.3 | G63: $10K Estimate & 2 Laundry room floors $1498. (2996.)
A64: REPAIR CONTRACT COSTS | B64: 4130 | C64: 15000 | D64: 1250 | E64: 12317.53333 | F64: 9238.15 | G64: $10K Estimate & Ext Paint $1250. per bldg (5000.)
A65: CARPET & VINYL/PLANK | B65: 0 | C65: 8000 | D65: =C65/12 -> 666.6666667 | E65: =F65/9*12 -> 0 | F65: 0 | G65: 2 units carpet/vinyl plank @ $4000.00 ea
A66: APPLIANCES | B66: 0 | C66: 2880 | D66: 240 | E66: 0 | F66: 0 | G66: 2 Refrigerators ($600.ea), 2 Ranges ($475 ea), 2 Dishwashers ($365ea)
A67: REPAIR PAYROLL | B67: 10000 | C67: 11370 | D67: 947.5 | E67: 11044 | F67: 8283
A68: SNOW REMOVAL | B68: 2810 | C68: 4350 | D68: 362.5 | E68: 4318.786667 | F68: 3239.09 | G68: Bid at $145 per plow aprox. Estimate 30 times
A69: TOTAL MAINTENANCE | B69: =SUM(B59:B68) -> 33230 | C69: =SUM(C59:C68) -> 65830 | D69: =SUM(D59:D68) -> 5485.833333 | E69: =SUM(E59:E68) -> 49951.46667 | F69: =SUM(F59:F68) -> 37463.6
A71: GENERAL
A72: PAYROLL TAXES | B72: 1690 | C72: 1680 | D72: =C72/12 -> 140 | E72: =F72/9*12 -> 1891.733333 | F72: 1418.8 | G72: 7.65% of Payroll
A73: PROP & LIAB. INSURANCE | B73: 9061 | C73: 10100 | D73: 841.6666667 | E73: 9810 | F73: 9809.76
A74: EMPLOYEE BENEFITS | B74: 6620 | C74: 6590 | D74: 549.1666667 | E74: 5656.986667 | F74: 4242.74 | G74: 30% of payroll - Health, Dental, CCOERA & Mtn St Employ Council
A75: WORKMAN'S COMPENSATION | B75: 660 | C75: 660 | D75: 55 | E75: 0 | F75: 0 | G75: 3.% of payroll per Mtn St Employ Council Paid in December-Estimate
A76: EMPLOYEE COMPENSATION | B76: 660 | C76: 660 | D76: 55 | E76: 0 | F76: 0 | G76: 3.% of payroll per Mtn St Employ Council Paid in December-Estimate
A77: BAD DEBT LOSS | B77: 800 | C77: 500 | D77: 41.66666667 | E77: 0 | F77: 0 | G77: Estimate
A78: LOSS ON DISPOSAL FIXED ASSET | B78: 853 | C78: 1230 | D78: =C78/12 -> 102.5 | E78: 1192.466667 | F78: 894.35 | G78: Estimate
A79: DEPRECIATION | B79: 68481 | C79: 68260 | D79: 5688.333333 | E79: 66270 | F79: 48499.22
A80: TOTAL GENERAL EXPENSE | B80: =SUM(B72:B79) -> 88825 | C80: =SUM(C72:C79) -> 89680 | D80: =SUM(D72:D79) -> 7473.333333 | E80: =SUM(E72:E79) -> 84821.18667 | F80: =SUM(F72:F79) -> 64864.87
A82: FINANCING
A83: INTEREST ON MORTGAGE | B83: 17050 | C83: 11890 | D83: =C83/12 -> 990.8333333 | E83: =F83/9*12 -> 19408.17333 | F83: 14556.13 | G83: 2016 Amortization Schedule
A84: MORTGAGE | B84: 91750 | C84: 96910 | D84: =C84/12 -> 8075.833333 | E84: 101481.2933 | F84: 76110.97
A85: TOTAL FINANCING | B85: =SUM(B83:B84) -> 108800 | C85: =SUM(C83:C84) -> 108800 | D85: =SUM(D83:D84) -> 9066.666667 | E85: =SUM(E83:E84) -> 120889.4667 | F85: =SUM(F83:F84) -> 90667.1
A87: RESERVES
A88: REPLACEMENT RESERVES | B88: 4800 | C88: 4800 | D88: =C88/12 -> 400 | E88: =F88/9*12 -> 4800 | F88: 3600
A89: TOTAL RESERVES | B89: =B88 -> 4800 | C89: =C88 -> 4800 | D89: =D88 -> 400 | E89: =SUM(E88) -> 4800 | F89: =SUM(F88) -> 3600
A91: CAPITAL EXPENDITURES
A92: LAND & IMPROVEMENTS | B92: =SUM(D92*12*1.03) -> 0 | C92: 0 | D92: =C92/12 -> 0 | E92: =F92/9*12 -> 0 | F92: 0
A93: BUILDING | B93: 0 | C93: 0 | D93: =C93/12 -> 0 | E93: 0 | F93: 0
A94: BUILDING IMPROVEMENTS | B94: 9200 | C94: 0 | D94: =C94/12 -> 0 | E94: 3419.506667 | F94: 2564.63
A95: BLDG EQUIPT FIXED | B95: 3000 | C95: 3000 | D95: 250 | E95: 20858.66667 | F95: 15644 | G95: One Water Heater $3,000
A96: BLDG. EQUIP. PORTABLE | B96: 2620 | C96: 0 | D96: 0 | E96: 3034.666667 | F96: 2276
A97: FURNISHINGS | B97: 4280 | C97: 0 | D97: 0 | E97: 15066.48 | F97: 11299.86
A98: MISC. FIXED ASSETS | B98: 0 | C98: 0 | D98: 0 | E98: 0 | F98: 0
A99: TOTAL CAPITAL EXP. | B99: =SUM(B93:B98) -> 19100 | C99: =SUM(C93:C98) -> 3000 | D99: =SUM(D93:D98) -> 250 | E99: =SUM(E93:E98) -> 42379.32 | F99: =SUM(F93:F98) -> 31784.49
A101: TOTAL EXPENDITURES | B101: =SUM(B99+B89+B85+B80+B69+B56+B49) -> 332155 | C101: =SUM(C99+C89+C85+C80+C69+C56+C49) -> 351540.3825 | D101: =SUM(D99+D89+D85+D80+D69+D56+D49) -> 29295.03188 | E101: =SUM(E99+E89+E85+E80+E69+E56+E49) -> 380268.9533 | F101: =SUM(F99+F89+F85+F80+F69+F56+F49) -> 285311.82
A103: NET GAIN/(LOSS) | B103: =SUM(B22-B101) -> -43795 | C103: =SUM(C22-C101) -> -62790.38253 | D103: =SUM(D22-D101) -> -5232.531878 | E103: =SUM(E22-E101) -> -89104.64667 | F103: =SUM(F22-F101) -> -66938.59

Sheet UPHAM
B7: JEFFCO HOUSING CORPORATION
B8: UPHAM STREET APTS. & RESPITE HOME
B9: FY 2016 OPERATING BUDGET | G9: On 10/2015 Upham Replacement Reserves $86,506.57
F10: Actual
B11: Budget | C11: Budget | D11: Budget | F11: YTD | G11: 3% increase over 12/31/2015 potential estimate
B12: FY 2015 | C12: FY 2016 | D12: FY 2016 | E12: FY 2015 | F12: FY 2015 | G12: unless otherwise noted
A13: OPERATING RECEIPTS | B13: ANNUAL | C13: ANNUAL | D13: Monthly | E13: 12MO Estimate | F13: at 9/30/15
A15: RENTAL INCOME-UPHAM | B15: 108870 | C15: 108600 | D15: =C15/12 -> 9050 | E15: =F15/9*12 -> 108716.6 | F15: 81537.45
A16: LESS: VACANCIES UPHAM | B16: -2180 | C16: -1800 | D16: -150 | E16: -752 | F16: -564 | G16: 1.65% Estimate based on lower vacancies in 2015
A17: RENTAL INCOME-RESPITE | B17: 0 | C17: 13200 | D17: 0 | E17: 13200 | F17: 9900
A18: INTEREST | B18: 40 | C18: 20 | D18: 1.666666667 | E18: 13.77333333 | F18: 10.33
A19: LAUNDRY INCOME - UPHAM | B19: 2719 | C19: 2780 | D19: 231.6666667 | E19: 2699.52 | F19: 2024.64
A20: NSF & LATE FEES | B20: 211 | C20: 170 | D20: 14.16666667 | E20: 162.6666667 | F20: 122
A21: OTHER INCOME | B21: 540 | C21: 360 | D21: 30 | E21: 34.89333333 | F21: 26.17 | G21: Collections and $310.00 approximately from City of Wheat Ridge-shared water
A22: TOTAL OPERATING RECEIPTS | B22: =SUM(B15:B21) -> 110200 | C22: =SUM(C15:C21) -> 123330 | D22: =SUM(D15:D21) -> 9177.5 | E22: =SUM(E15:E21) -> 124075.4533 | F22: =SUM(F15:F21) -> 93056.59
A24: OPERATING EXPENDITURES
A25: ADMINISTRATIVE | B25: =B48 -> 21630 | C25: =C48 -> 24460 | D25: =D48 -> 2038.333333 | E25: =E48 -> 22976.56 | F25: =F48 -> 17232.42
A26: OPERATING | B26: =B55 -> 15230 | C26: =C55 -> 15020 | D26: =D55 -> 1251.666667 | E26: =E55 -> 13120.08 | F26: =F55 -> 10449.06
A27: MAINTENANCE | B27: =B68 -> 32930 | C27: =C68 -> 47739.78347 | D27: =D68 -> 3978.315289 | E27: =E68 -> 27719.37333 | F27: =F68 -> 20789.53
A28: GENERAL | B28: =B79 -> 38950 | C28: =C79 -> 48300 | D28: =D79 -> 4025 | E28: =E79 -> 37957.2 | F28: =F79 -> 28695.19
A29: FINANCING | B29: =B84 -> 0 | C29: =C84 -> 0 | D29: =D84 -> 0 | E29: =E84 -> 0 | F29: =F84 -> 0
A30: RESERVES | B30: =B88 -> 4800 | C30: =C88 -> 4800 | D30: =D88 -> 400 | E30: =E88 -> 4800 | F30: =F88 -> 3600
A31: CAPITAL EXPENSE | B31: =B98 -> 11300 | C31: =C98 -> 0 | D31: =D98 -> 0 | E31: =E98 -> 3991.48 | F31: =F98 -> 2993.61
A32: TOTAL OPERATING EXPENSE | B32: =SUM(B25:B31) -> 124840 | C32: =SUM(C25:C31) -> 140319.7835 | D32: =SUM(D25:D31) -> 11693.31529 | E32: =SUM(E25:E31) -> 110564.6933 | F32: =SUM(F25:F31) -> 83759.81
A33: NET INCOME | B33: =SUM(B22-B32) -> -14640 | C33: =SUM(C22-C32) -> -16989.78347 | D33: =SUM(D22-D32) -> -2515.815289 | E33: =SUM(E22-E32) -> 13510.76 | F33: =SUM(F22-F32) -> 9296.78
A36: ADMINISTRATIVE EXPENDITURES
A38: OFFICE SALARIES | B38: 13000 | C38: 13770 | D38: =C38/12 -> 1147.5 | E38: =F38/9*12 -> 13361.77333 | F38: 10021.33
A39: OFFICE SUPPLIES | B39: 150 | C39: 120 | D39: =C39/12 -> 10 | E39: 108.0533333 | F39: 81.04 | G39: $110.00 Upham $10.00 Respite
A40: DUES & MTG EXPENSE | B40: 80 | C40: 50 | D40: 4.166666667 | E40: 44.76 | F40: 33.57
A41: MANAGEMENT FEE | B41: 5510 | C41: 5500 | D41: 458.3333333 | E41: 5543.64 | F41: 4157.73 | G41: Based on 5% of total income minus interest
A42: LEGAL | B42: 350 | C42: 420 | D42: 35 | E42: 0 | F42: 0 | G42: One legal & one sheriff fee
A43: ACCOUNTING/AUDIT | B43: 1310 | C43: 1760 | D43: 146.6666667 | E43: 1710.333333 | F43: 1282.75
A44: TELEPHONE | B44: 0 | C44: 300 | D44: 25 | E44: 294.1733333 | F44: 220.63
A45: COMPUTER EXPENSE | B45: 0 | C45: 560 | D45: 46.66666667 | E45: 0 | F45: 0 | G45: Anchor Network 2016 @ 1% of contract $414.00 and new server @ 1% 144.50
A46: MISC. ADMIN. EXPENSE | B46: 860 | C46: 820 | D46: 68.33333333 | E46: 793.0266667 | F46: 594.77
A47: TRAVEL | B47: 370 | C47: 1160 | D47: 96.66666667 | E47: 1120.8 | F47: 840.6
A48: TOTAL ADMINISTRATIVE | B48: =SUM(B38:B47) -> 21630 | C48: =SUM(C38:C47) -> 24460 | D48: =SUM(D38:D47) -> 2038.333333 | E48: =SUM(E38:E47) -> 22976.56 | F48: =SUM(F38:F47) -> 17232.42
A50: OPERATING EXPENDITURES | G50: Rate Increases for 2015/16 provided from Xcel Energy/Denver Water/Arvada
A51: ELECTRIC | B51: 1720 | C51: 1450 | D51: =C51/12 -> 120.8333333 | E51: =F51/9*12 -> 1390.386667 | F51: 1042.79 | G51: 3.9% all Upham Respite billed to Tenant
A52: WATER | B52: 5180 | C52: 5890 | D52: =C52/12 -> 490.8333333 | E52: 4558.933333 | F52: 3419.2 | G52: 4.0.% $4740.00 Upham $1150.00 Respite
A53: GAS | B53: 5770 | C53: 4970 | D53: =C53/12 -> 414.1666667 | E53: 4734.76 | F53: 3551.07 | G53: 5.% all Upham Respite billed to Tenant
A54: SEWER | B54: 2560 | C54: 2710 | D54: =C54/12 -> 225.8333333 | E54: 2436 | F54: 2436 | G54: 4.% - Annual $2530.00 Upham $180.00 Respite
A55: TOTAL OPERATING | B55: =SUM(B51:B54) -> 15230 | C55: =SUM(C51:C54) -> 15020 | D55: =SUM(D51:D54) -> 1251.666667 | E55: =SUM(E51:E54) -> 13120.08 | F55: =SUM(F51:F54) -> 10449.06
A57: MAINTENANCE EXPENDITURES
A58: JANITORIAL CONTRACT & SUPPLIES | B58: 740 | C58: 1130 | D58: =C58/12 -> 94.16666667 | E58: =F58/9*12 -> 1100 | F58: 825
A59: EXTERMINATION CONTRACT | B59: 1050 | C59: 1080 | D59: 90 | E59: 1166.666667 | F59: 875 | G59: 3% & Contract $175 bi monthly ($1050.00.yr)
A60: TRASH REMOVAL | B60: 1280 | C60: 1280 | D60: 106.6666667 | E60: 1440.84 | F60: 1080.63 | G60: 3% & Contract $103.09 month ($1237.yr)
A61: GROUNDS CONTRACT | B61: 3900 | C61: 4270 | D61: 355.8333333 | E61: 2553.333333 | F61: 1915 | G61: 3 % & 2014 rate of $116 wk April-Oct(30wks=$3480.)+$420 cleanup & $250.00 Respite
A62: REPAIR MATERIALS | B62: 6000 | C62: 5460 | D62: 455 | E62: 5205.746667 | F62: 3904.31 | G62: 3% and $100.00 Respite
A63: REPAIR CONTRACT | B63: 8000 | C63: 14090 | D63: 1174.166667 | E63: 4084 | F63: 3063 | G63: 3% plus Railings /Step replacements $4000. & Ext Paint 5000. and $880.00 Respite ($450clean carpet.
A64: CARPET & VINYL/PLANK | B64: 0 | C64: 4800 | D64: 400 | E64: 0 | F64: 0 | G64: 3 units carpet / vinyl or vinyl plank $1600 each
A65: APPLIANCES | B65: 0 | C65: 3100 | D65: 258.3333333 | E65: 0 | F65: 0 | G65: 2 Refridgerators $500 ea and 3 Ranges @$500 ea and $600 Respite dishwasher
A66: REPAIR PAYROLL | B66: 11000 | C66: 11000 | D66: 916.6666667 | E66: 10683.56 | F66: 8012.67
A67: SNOW REMOVAL | B67: 960 | C67: =SUM(E67*1.03) -> 1529.783467 | D67: 127.4819556 | E67: 1485.226667 | F67: 1113.92
A68: TOTAL MAINTENANCE | B68: =SUM(B58:B67) -> 32930 | C68: =SUM(C58:C67) -> 47739.78347 | D68: =SUM(D58:D67) -> 3978.315289 | E68: =SUM(E58:E67) -> 27719.37333 | F68: =SUM(F58:F67) -> 20789.53
A70: GENERAL
A71: PAYROLL TAXES | B71: 1760 | C71: 1900 | D71: =C71/12 -> 158.3333333 | E71: =F71/9*12 -> 2179.426667 | F71: 1634.57 | G71: 7.65% of Payroll
A72: PROP & LIABILITY INSURANCE | B72: 3600 | C72: 4220 | D72: =C72/12 -> 351.6666667 | E72: 3554 | F72: 3921.45 | G72: $3660.00 Upham and $560.00 Respite
A73: EMP BENEFITS | B73: 6900 | C73: 7430 | D73: 619.1666667 | E73: 6623.773333 | F73: 4967.83 | G73: 30.% of payroll - Health, Dental, CCOERA & Mtn St Employ Council
A74: WORKMENS COMPENSATION | B74: 690 | C74: 740 | D74: 61.66666667 | E74: 0 | F74: 0 | G74: 3.% of payroll per Mtn St Employ Council Paid in December-Estimate
A75: EMPLOYEE COMPENSATION | B75: 690 | C75: 740 | D75: 61.66666667 | E75: 0 | F75: 0 | G75: 3.% of payroll per Mtn St Employ Council Paid in December-Estimate
A76: BAD DEBT LOSS | B76: 500 | C76: 500 | D76: 41.66666667 | E76: 0 | F76: 0 | G76: esitmate
A77: LOSS ON DISPOSAL FIXED ASSET | B77: 1000 | C77: 1140 | D77: =C77/12 -> 95 | E77: 0 | F77: 0 | G77: esitmate - $1000.00 Upham and $140.00 Respite
A78: DEPRECIATION | B78: 23810 | C78: 31630 | D78: 2635.833333 | E78: 25600 | F78: 18171.34 | G78: $26,370.00 Upham and $5260.00 Respite
A79: TOTAL GENERAL EXPENSE | B79: =SUM(B71:B78) -> 38950 | C79: =SUM(C71:C78) -> 48300 | D79: 4025 | E79: 37957.2 | F79: 28695.19
A81: FINANCING
A82: MORTGAGE INTEREST | B82: 0 | C82: 0 | D82: =C82/12 -> 0 | E82: =F82/9 -> 0 | F82: 0
A83: MORTGAGE PRINCIPAL | B83: 0 | C83: 0 | D83: =C83/12 -> 0 | E83: =F83/9 -> 0 | F83: 0
A84: TOTAL FINANCING | B84: =SUM(B82:B83) -> 0 | C84: =SUM(C82:C83) -> 0 | D84: =SUM(D82:D83) -> 0 | E84: =SUM(E82:E83) -> 0 | F84: =SUM(F82:F83) -> 0 | G84: No Mortgage
A86: RESERVES
A87: REPLACEMENT RESERVES | B87: 4800 | C87: 4800 | D87: =C87/12 -> 400 | E87: =F87/9*12 -> 4800 | F87: 3600
A88: TOTAL RESERVES | B88: =B87 -> 4800 | C88: =C87 -> 4800 | D88: =D87 -> 400 | E88: =E87 -> 4800 | F88: =F87 -> 3600
A90: CAPITAL EXPENDITURES
A91: LAND & IMPROVEMENTS | B91: 0 | C91: 0 | D91: =C91/12 -> 0 | E91: =F91/9*12 -> 0 | F91: 0
A92: BUILDING | B92: 0 | C92: 0 | D92: 0 | E92: 0 | F92: 0
A93: BUILDING IMPROVEMENTS | B93: 4000 | C93: 0 | D93: =C93/12 -> 0 | E93: 1307.333333 | F93: 980.5
A94: BLDG. EQUIP. FIXED | B94: 0 | C94: 0 | D94: 0 | E94: 0 | F94: 0
A95: BLDG. EQUIP. PORTABLE | B95: 2500 | C95: 0 | D95: 0 | E95: 800 | F95: 600
A96: FURNISHINGS | B96: 4800 | C96: 0 | D96: 0 | E96: 1884.146667 | F96: 1413.11
A97: MISC. FIXED ASSETS | B97: 0 | C97: 0 | D97: 0 | E97: 0 | F97: 0
A98: TOTAL CAPITAL EXP. | B98: =SUM(B91:B97) -> 11300 | C98: =SUM(C91:C97) -> 0 | D98: =SUM(D91:D97) -> 0 | E98: =SUM(E91:E97) -> 3991.48 | F98: =SUM(F91:F97) -> 2993.61
A100: TOTAL EXPENDITURES | B100: =SUM(B98+B88+B84+B79+B68+B55+B48) -> 124840 | C100: =SUM(C98+C88+C84+C79+C68+C55+C48) -> 140319.7835 | D100: =SUM(D98+D88+D84+D79+D68+D55+D48) -> 11693.31529 | E100: =SUM(E98+E88+E84+E79+E68+E55+E48) -> 110564.6933 | F100: =SUM(F98+F88+F84+F79+F68+F55+F48) -> 83759.81
A102: NET GAIN/LOSS | B102: =SUM(B22-B100) -> -14640 | C102: =SUM(C22-C100) -> -16989.78347 | D102: =SUM(D22-D100) -> -2515.815289 | E102: =SUM(E22-E100) -> 13510.76 | F102: =SUM(F22-F100) -> 9296.78

Sheet west 40
B5: JEFFCO HOUSING CORPORATION
B6: WEST 40th
B7: FY 2016 OPERATING BUDGET
G8: On 10/2015 Replacement Reserves $59,304.89
F9: Actual
B10: Budget | C10: Budget | D10: Budget | F10: YTD | G10: 3% increase over 12/31/2015 potential estimate
B11: FY 2015 | C11: FY 2016 | D11: FY 2016 | E11: FY 2015 | F11: FY 2015 | G11: unless otherwise noted
A12: OPERATING RECEIPTS | B12: ANNUAL | C12: ANNUAL | D12: Monthly | E12: 12MO Estimate | F12: at 9/30/15
A14: RENTAL INCOME | B14: 66480 | C14: 67800 | D14: =C14/12 -> 5650 | E14: =F14/9*12 -> 67336 | F14: 50502 | G14: Projected 2015 Rental Income
A15: VACANCIES | B15: -1330 | C15: -1350 | D15: -112.5 | E15: -752.8 | F15: -564.6 | G15: 2% of Rental Income
A16: TRANSFER FROM RESERVES | B16: 11000 | C16: 8000 | D16: 666.6666667 | E16: 0 | F16: 0
A17: INTEREST INCOME | B17: 20 | C17: 20 | D17: 1.666666667 | E17: 9.426666667 | F17: 7.07
A18: LAUNDRY INCOME | B18: 810 | C18: 740 | D18: 61.66666667 | E18: 722.6666667 | F18: 542
A19: NSF / LATE CHARGES | B19: 30 | C19: =SUM(E19*1.03) -> 0 | D19: 0 | E19: 0 | F19: 0
A20: OTHER INCOME | B20: 20 | C20: 20 | D20: 1.666666667 | E20: 17.97333333 | F20: 13.48 | G20: Estimated from collections
A22: TOTAL OPERATING RECEIPTS | B22: =SUM(B14:B20) -> 77030 | C22: =SUM(C14:C20) -> 75230 | D22: =SUM(D14:D20) -> 6269.166667 | E22: =SUM(E14:E20) -> 67333.26667 | F22: =SUM(F14:F20) -> 50499.95
A24: OPERATING EXPENDITURES
A25: ADMINISTRATIVE | B25: =B48 -> 5200 | C25: =C48 -> 6440.0232 | D25: =D48 -> 536.6686 | E25: =E48 -> 5409.133333 | F25: =F48 -> 4056.85
A26: OPERATING | B26: =B55 -> 9250 | C26: =C55 -> 8070 | D26: =D55 -> 672.5 | E26: =E55 -> 7717.653333 | F26: =F55 -> 6136.24
A27: MAINTENANCE | B27: =B69 -> 22400 | C27: =C69 -> 33450.10667 | D27: =D69 -> 2787.508889 | E27: =E69 -> 21140.30667 | F27: =F69 -> 15855.23
A28: GENERAL | B28: =B80 -> 17890 | C28: =C80 -> 18740 | D28: =D80 -> 1561.666667 | E28: =E80 -> 15139.92 | F28: =F80 -> 11975.77
A29: FINANCING | B29: =B86 -> 23100 | C29: =C86 -> 23100 | D29: =D86 -> 1925 | E29: =E86 -> 23094.6 | F29: =F86 -> 17320.95
A30: RESERVES | B30: =B89 -> 3600 | C30: =C89 -> 3600 | D30: =D89 -> 300 | E30: =E90 -> 3600 | F30: =F90 -> 2700
A31: CAPITAL EXPENSE | B31: =B100 -> 8700 | C31: =C100 -> 0 | D31: =D100 -> 0 | E31: =E100 -> 6934.44 | F31: =F100 -> 3460.64
A32: TOTAL OPERATING EXPENSE | B32: =SUM(B25:B31) -> 90140 | C32: =SUM(C25:C31) -> 93400.12987 | D32: =SUM(D25:D31) -> 7783.344156 | E32: =SUM(E25:E31) -> 83036.05333 | F32: =SUM(F25:F31) -> 61505.68
A33: NET INCOME | B33: =SUM(B22-B32) -> -13110 | C33: =SUM(C22-C32) -> -18170.12987 | D33: =SUM(D22-D32) -> -1514.177489 | E33: =SUM(E22-E32) -> -15702.78667 | F33: =SUM(F22-F32) -> -11005.73
A36: ADMINISTRATIVE EXPENDITURES
A38: OFFICE SALARIES | B38: 0 | C38: =SUM(E38*1.03) -> 0 | D38: =C38/12 -> 0 | E38: =F38/9*12 -> 0 | F38: 0
A39: OFFICE SUPPLIES | B39: 110 | C39: 99.67653333 | D39: 8.306377778 | E39: 96.77333333 | F39: 72.58
A40: DUES & MTG EXPENSE | B40: 50 | C40: 30 | D40: 2.5 | E40: 27.97333333 | F40: 20.98
A41: MANAGEMENT FEE | B41: 3300 | C41: 3360 | D41: 280 | E41: 3366.2 | F41: 2524.65 | G41: Based on 5% of total income minus interest & reserves
A42: LEGAL | B42: 350 | C42: 420 | D42: 35 | E42: 0 | F42: 0 | G42: One legal & one sheriff fee
A43: ACCOUNTING/AUDIT | B43: 650 | C43: 950.3466667 | D43: 79.19555556 | E43: 922.6666667 | F43: 692
A44: TELEPHONE | B44: 0 | C44: 120 | D44: 10 | E44: 117.6666667 | F44: 88.25
A45: COMPUTER EXPENSE | B45: 0 | C45: 560 | D45: 46.66666667 | E45: 0 | F45: 0 | G45: Anchor Network 2016 @ 1% of contract $414.00 and new server @ 1% 144.50
A46: MISC. ADMIN. EXPENSE | B46: 610 | C46: 570 | D46: 47.5 | E46: 555.1333333 | F46: 416.35
A47: TRAVEL | B47: 130 | C47: 330 | D47: 27.5 | E47: 322.72 | F47: 242.04
A48: TOTAL ADMINISTRATIVE | B48: =SUM(B38:B47) -> 5200 | C48: =SUM(C38:C47) -> 6440.0232 | D48: =SUM(D38:D47) -> 536.6686 | E48: =SUM(E38:E47) -> 5409.133333 | F48: =SUM(F38:F47) -> 4056.85
A50: OPERATING EXPENDITURES | G50: Rate Increases for 2015/16 provided from Xcel Energy/Denver Water/Arvada
A51: ELECTRIC | B51: 560 | C51: 410 | D51: =C51/12 -> 34.16666667 | E51: =F51/9*12 -> 392.2266667 | F51: 294.17 | G51: 3.9%
A52: WATER | B52: 2240 | C52: 2200 | D52: 183.3333333 | E52: 2112.733333 | F52: 1584.55 | G52: 4.0.%
A53: GAS | B53: 4500 | C53: 4010 | D53: 334.1666667 | E53: 3820.693333 | F53: 2865.52 | G53: 5.%
A54: SEWER | B54: 1950 | C54: 1450 | D54: 120.8333333 | E54: 1392 | F54: 1392 | G54: 4.% - Annual
A55: TOTAL OPERATING | B55: =SUM(B51:B54) -> 9250 | C55: =SUM(C51:C54) -> 8070 | D55: =SUM(D51:D54) -> 672.5 | E55: =SUM(E51:E54) -> 7717.653333 | F55: =SUM(F51:F54) -> 6136.24
A58: MAINTENANCE EXPENDITURES
A59: JANITORIAL CONTRACT & SUPPLIES | B59: 740 | C59: 740 | D59: =C59/12 -> 61.66666667 | E59: =F59/9*12 -> 380 | F59: 285 | G59: Laundry Cleaning $40 per month($480. started mid 2015) & unit ($260)
A60: EXTERMINATING CONTRACT | B60: 1460 | C60: 1500 | D60: 125 | E60: 1451.96 | F60: 1088.97
A61: TRASH REMOVAL | B61: 1240 | C61: 1250 | D61: 104.1666667 | E61: 1216.626667 | F61: 912.47
A62: GROUNDS CONTRACT | B62: 3900 | C62: 3780 | D62: 315 | E62: 4433.333333 | F62: 3325 | G62: 2015 rate $116 week April-Oct (30wks=$3480.) plus 300. additional cleanup and maintenance
A63: REPAIR MATERIALS | B63: 1000 | C63: 3300 | D63: 275 | E63: 3207.546667 | F63: 2405.66
A64: REPAIR CONTRACT | B64: 6860 | C64: 6100 | D64: 508.3333333 | E64: 1249.333333 | F64: 937 | G64: 3% & Boiler cleaning $600. & Concrete work $3000. & $1200 increase for low 2015 costs
A65: CARPET & VINYL/PLANK | B65: 0 | C65: 2700 | D65: 225 | E65: 0 | F65: 0 | G65: One unit carpet/vinyl or vinyl plank
A66: APPLIANCES | B66: 0 | C66: 4600 | D66: 383.3333333 | E66: 0 | F66: 0 | G66: One Range $400. One Fridge $600 & 4 Swamp Coolers @ $900. ea ($3600)
A67: REPAIR PAYROLL | B67: 5900 | C67: =SUM(E67*1.03) -> 7740.106667 | D67: =C67/12 -> 645.0088889 | E67: =F67/9*12 -> 7514.666667 | F67: 5636
A68: SNOW REMOVAL | B68: 1300 | C68: 1740 | D68: 145 | E68: 1686.84 | F68: 1265.13
A69: TOTAL MAINTENANCE | B69: =SUM(B59:B68) -> 22400 | C69: =SUM(C59:C68) -> 33450.10667 | D69: =SUM(D59:D68) -> 2787.508889 | E69: =SUM(E59:E68) -> 21140.30667 | F69: =SUM(F59:F68) -> 15855.23
A71: GENERAL
A72: PAYROLL TAXES | B72: 450 | C72: 590 | D72: =C72/12 -> 49.16666667 | E72: =F72/9*12 -> 99.49333333 | F72: 74.62 | G72: 7.65% of Payroll
A73: PROP & LIAB. INSURANCE | B73: 2000 | C73: 2140 | D73: 178.3333333 | E73: 2074 | F73: 2176.33
A74: EMPLOYEE BENEFITS | B74: 1770 | C74: 2320 | D74: 193.3333333 | E74: 211.44 | F74: 158.58 | G74: 30.% of payroll - Health, Dental, CCOERA & Mtn St Employ Council
A75: WORKMAN'S COMPENSATION | B75: 180 | C75: 230 | D75: 19.16666667 | E75: 0 | F75: 0 | G75: 3.% of payroll per Mtn St Employ Council Paid in December-Estimate
A76: EMPLOYEE COMPENSATIONS | B76: 180 | C76: 230 | D76: 19.16666667 | E76: 0 | F76: 0 | G76: 3.% of payroll per Mtn St Employ Council Paid in December-Estimate
A77: BAD DEBT LOSS | B77: 500 | C77: 50 | D77: 4.166666667 | E77: 0 | F77: 0
A78: LOSS ON DISPOSAL FIXED ASSET | B78: 300 | C78: 300 | D78: 25 | E78: 248.8266667 | F78: 186.62 | G78: estimate
A79: DEPRECIATION | B79: 12510 | C79: 12880 | D79: 1073.333333 | E79: 12506.16 | F79: 9379.62
A80: TOTAL GENERAL EXPENSE | B80: =SUM(B72:B79) -> 17890 | C80: =SUM(C72:C79) -> 18740 | D80: 1561.666667 | E80: 15139.92 | F80: 11975.77
A83: FINANCING
A84: INT ON MORTGAGE PAYABLE | B84: 3650 | C84: 2240 | D84: =C84/12 -> 186.6666667 | E84: =F84/9*12 -> 3764.866667 | F84: 2823.65 | G84: 2016 Amortization Schedule
A85: MORTGAGE | B85: 19450 | C85: 20860 | D85: 1738.333333 | E85: 19329.73333 | F85: 14497.3
A86: TOTAL FINANCING | B86: =SUM(B84:B85) -> 23100 | C86: =SUM(C84:C85) -> 23100 | D86: =SUM(D84:D85) -> 1925 | E86: =SUM(E84:E85) -> 23094.6 | F86: =SUM(F84:F85) -> 17320.95
A88: RESERVES
A89: REPLACEMENT RESERVES | B89: 3600 | C89: 3600 | D89: =C89/12 -> 300 | E89: =F89/9*12 -> 3600 | F89: 2700
A90: TOTAL RESERVES | B90: =B89 -> 3600 | C90: =C89 -> 3600 | D90: =D89 -> 300 | E90: =E89 -> 3600 | F90: =F89 -> 2700
A92: CAPITAL EXPENDITURES
A93: LAND & IMPROVEMENTS | B93: 0 | C93: 0 | D93: =C93/12 -> 0 | E93: =F93/9*12 -> 0 | F93: 0
A94: BUILDING | B94: 0 | C94: 0 | D94: 0 | E94: 0 | F94: 0
A95: BUILDING IMPROVEMENTS | B95: 3500 | C95: 0 | D95: =C95/12 -> 0 | E95: 3400 | F95: 809.81
A96: BUILDING EQUIP FIXED | B96: 3000 | C96: 0 | D96: 0 | E96: 0 | F96: 0
A97: BLDG. EQUIP. PORTABLE | B97: 1000 | C97: 0 | D97: 0 | E97: 0 | F97: 0
A98: FURNISHINGS | B98: 1200 | C98: 0 | D98: 0 | E98: 3534.44 | F98: 2650.83
A99: MISC. FIXED ASSETS | B99: 0 | C99: 0 | D99: 0 | E99: 0 | F99: 0
A100: TOTAL CAPITAL EXP. | B100: =SUM(B93:B99) -> 8700 | C100: =SUM(C93:C99) -> 0 | D100: =SUM(D93:D99) -> 0 | E100: =SUM(E93:E99) -> 6934.44 | F100: =SUM(F93:F99) -> 3460.64
A102: TOTAL EXPENDITURES | B102: =SUM(B100+B90+B86+B80+B69+B55+B48) -> 90140 | C102: =SUM(C100+C90+C86+C80+C69+C55+C48) -> 93400.12987 | D102: =SUM(D100+D90+D86+D80+D69+D55+D48) -> 7783.344156 | E102: =SUM(E100+E90+E86+E80+E69+E55+E48) -> 83036.05333 | F102: =SUM(F100+F90+F86+F80+F69+F55+F48) -> 61505.68
A104: NET GAIN/LOSS | B104: =SUM(B22-B102) -> -13110 | C104: =SUM(C22-C102) -> -18170.12987 | D104: =SUM(D22-D102) -> -1514.177489 | E104: =SUM(E22-E102) -> -15702.78667 | F104: =SUM(F22-F102) -> -11005.73

Sheet WRP
B5: JEFFCO HOUSING CORPORATION
B6: WHEAT RIDGE PARK
B7: FY 2016 OPERATING BUDGET
G8: On 10/2015 Replacement Reserves $46,676.99
F9: Actual
B10: Budget | C10: Budget | D10: Budget | F10: YTD | G10: 3% increase over 12/31/2015 potential estimate
B11: FY 2015 | C11: FY 2016 | D11: FY 2016 | E11: FY 2015 | F11: FY 2015 | G11: unless otherwise noted
A12: OPERATING RECEIPTS | B12: ANNUAL | C12: ANNUAL | D12: Monthly | E12: 12MO Estimate | F12: at 9/30/15
A14: RENTAL INCOME | B14: 155700 | C14: 159130 | D14: =C14/12 -> 13260.83333 | E14: =F14/9*12 -> 156852 | F14: 117639
A15: VACANCIES | B15: -3110 | C15: -3180 | D15: -265 | E15: -886.6666667 | F15: -665 | G15: 2% of Rental Income
A16: TRANSFER FROM RESERVES | B16: 14000 | C16: 4000 | D16: 333.3333333 | E16: 0 | F16: 0
A17: INTEREST INCOME | B17: 10 | C17: 10 | D17: 0.8333333333 | E17: 7.133333333 | F17: 5.35 | G17: Shared with 46th
A18: LAUNDRY INCOME | B18: 1730 | C18: 1730 | D18: 144.1666667 | E18: 1889.533333 | F18: 1417.15
A19: NSF / LATE CHARGES | B19: 570 | C19: 570 | D19: 47.5 | E19: 442.6666667 | F19: 332
A20: MISC INCOME | B20: 1000 | C20: 750 | D20: 62.5 | E20: 724.2266667 | F20: 543.17 | G20: Income is from collections of previously written off tenants.
A22: TOTAL OPERATING RECEIPTS | B22: =SUM(B14:B20) -> 169900 | C22: =SUM(C14:C20) -> 163010 | D22: =SUM(D14:D20) -> 13584.16667 | E22: =SUM(E14:E20) -> 159028.8933 | F22: =SUM(F14:F20) -> 119271.67
A24: OPERATING EXPENDITURES
A25: ADMINISTRATIVE | B25: =B48 -> 21470 | C25: =C48 -> 23440 | D25: =D48 -> 1953.333333 | E25: =E48 -> 21427.85333 | F25: =F48 -> 16070.89
A26: OPERATING | B26: =B55 -> 16370 | C26: =C55 -> 16010.054 | D26: =D55 -> 1334.171167 | E26: =E55 -> 15349.08 | F26: =F55 -> 11547.68
A27: MAINTENANCE | B27: =B69 -> 44400 | C27: =C69 -> 49659.81333 | D27: =D69 -> 4138.317778 | E27: =E69 -> 39293.77333 | F27: =F69 -> 29470.33
A28: GENERAL | B28: =B80 -> 49500 | C28: =C80 -> 52440 | D28: =D80 -> 4370 | E28: =E80 -> 47477.49333 | F28: =F80 -> 38112.27
A29: FINANCING | B29: =B85 -> 43310 | C29: =C85 -> 43310 | D29: =D85 -> 3609.166667 | E29: =E85 -> 48123.33333 | F29: =F85 -> 36092.5
A30: RESERVES | B30: =B88 -> 4800 | C30: =C88 -> 4800 | D30: =D88 -> 400 | E30: =E89 -> 4800 | F30: =F89 -> 3600
A31: CAPITAL EXPENSE | B31: =B99 -> 16960 | C31: =C99 -> 0 | D31: =D99 -> 0 | E31: =E99 -> 750.6666667 | F31: =F99 -> 2259
A32: TOTAL OPERATING EXPENSE | B32: =SUM(B25:B31) -> 196810 | C32: =SUM(C25:C31) -> 189659.8673 | D32: =SUM(D25:D31) -> 15804.98894 | E32: =SUM(E25:E31) -> 177222.2 | F32: =SUM(F25:F31) -> 137152.67
A33: NET INCOME | B33: =SUM(B22-B32) -> -26910 | C33: =SUM(C22-C32) -> -26649.86733 | D33: =SUM(D22-D32) -> -2220.822278 | E33: =SUM(E22-E32) -> -18193.30667 | F33: =SUM(F22-F32) -> -17881
A36: ADMINISTRATIVE EXPENDITURES
A37: OFFICE SALARIES | B37: 8700 | C37: 9080 | D37: =C37/12 -> 756.6666667 | E37: =F37/9*12 -> 8816 | F37: 6612
A38: OFFICE SUPPLIES | B38: 210 | C38: 230 | D38: 19.16666667 | E38: 221.0533333 | F38: 165.79
A39: DUES & MTG EXPENSE | B39: 120 | C39: 70 | D39: 5.833333333 | E39: 67.12 | F39: 50.34
A40: CLIENT VERIFICATION SERVICES | B40: 70 | C40: 70 | D40: 5.833333333 | E40: =F40/9*12 -> 0 | F40: 0 | G40: Estimate
A41: MANAGEMENT FEE | B41: 7790 | C41: 7950 | D41: 662.5 | E41: 7951.133333 | F41: 5963.35 | G41: Based on 5% of total income minus interest & reserves
A42: LEGAL | B42: 350 | C42: 420 | D42: 35 | E42: 0 | F42: 0 | G42: One legal & one sheriff fee
A43: ACCOUNTING/AUDIT | B43: 1790 | C43: 2370 | D43: 197.5 | E43: 2301.08 | F43: 1725.81
A44: TELEPHONE | B44: 770 | C44: 760 | D44: 63.33333333 | E44: 740.68 | F44: 555.51
A45: COMPUTER EXPENSE | B45: 0 | C45: 1120 | D45: 93.33333333 | E45: 0 | F45: 0 | G45: Anchor Network 2016 @2% of contract $828. and new server @ 2% 289.00
A46: MISC. ADMIN. EXPENSE | B46: 930 | C46: 570 | D46: 47.5 | E46: 555.1333333 | F46: 416.35
A47: TRAVEL | B47: 740 | C47: 800 | D47: 66.66666667 | E47: 775.6533333 | F47: 581.74
A48: TOTAL ADMINISTRATIVE | B48: =SUM(B37:B47) -> 21470 | C48: =SUM(C37:C47) -> 23440 | D48: =SUM(D37:D47) -> 1953.333333 | E48: =SUM(E37:E47) -> 21427.85333 | F48: =SUM(F37:F47) -> 16070.89
A50: OPERATING EXPENDITURES | G50: Rate Increases for 2015/16 provided from Xcel Energy/Denver Water/Arvada
A51: ELECTRIC | B51: 2390 | C51: 3170 | D51: =C51/12 -> 264.1666667 | E51: =F51/9*12 -> 3045.266667 | F51: 2283.95 | G51: 3.9%
A52: WATER | B52: 4080 | C52: 4410 | D52: 367.5 | E52: 4239 | F52: 2375.12 | G52: 4.0.% (adj average for Wheat Ridge Water semi monthly billings)
A53: GAS | B53: 6630 | C53: =SUM(E53*1.05) -> 4940.054 | D53: 411.6711667 | E53: 4704.813333 | F53: 3528.61 | G53: 5.%
A54: SEWER | B54: 3270 | C54: 3490 | D54: 290.8333333 | E54: 3360 | F54: 3360 | G54: 4.% - Semi Annual
A55: TOTAL OPERATING | B55: =SUM(B51:B54) -> 16370 | C55: =SUM(C51:C54) -> 16010.054 | D55: =SUM(D51:D54) -> 1334.171167 | E55: =SUM(E51:E54) -> 15349.08 | F55: =SUM(F51:F54) -> 11547.68
A57: MAINTENANCE EXPENDITURES
A58: JANITORIAL SUPPLIES | B58: 280 | C58: =SUM(E58*1.03) -> 0 | D58: =C58/12 -> 0 | E58: =F58/9*12 -> 0 | F58: 0
A59: JANITORIAL CONTRACT | B59: 1950 | C59: 1570 | D59: 130.8333333 | E59: 1520 | F59: 1140
A60: EXTERMINATING CONTRACT | B60: 3520 | C60: 2520 | D60: 210 | E60: 5458.666667 | F60: 4094 | G60: 2015 Contract $253 bi monthly ($1518.00) and BB chg $1000
A61: TRASH REMOVAL | B61: 2740 | C61: 2840 | D61: 236.6666667 | E61: 2731.066667 | F61: 2048.3 | G61: 3% & Contract $204.83 month ($2458.yr)- plus one rolloff $300
A62: GROUNDS CONTRACT | B62: 4490 | C62: 4360 | D62: 363.3333333 | E62: 4480 | F62: 3360 | G62: $116 wk April-Oct (30wks=$3480)plus 300cleanup 580sprinklers
A63: REPAIR MATERIALS | B63: 11550 | C63: 9580 | D63: 798.3333333 | E63: 5800.733333 | F63: 4350.55 | G63: 3% & unit entry doors @$450 ea x8 (3600.)
A64: REPAIR CONTRACT COSTS | B64: 10500 | C64: 11390 | D64: 949.1666667 | E64: 7418.666667 | F64: 5564 | G64: 3% & Boiler cleaning @$250 each ($750) & Ext. Paint/Vinyl $3000
A65: CARPET & VINYL/PLANK | B65: 0 | C65: 3000 | D65: 250 | E65: 0 | F65: 0 | G65: 2 units carpet/vinyl $1,350 each and two entries $150. each
A66: APPLIANCES | B66: 0 | C66: 2160 | D66: 180 | E66: 0 | F66: 0 | G66: 2 Refrigerator $500., 1 Range $465, 2 Dishwasher $345.
A67: REPAIR PAYROLL | B67: 8400 | C67: 10659.81333 | D67: 888.3177778 | E67: 10349.33333 | F67: 7762
A68: SNOW REMOVAL | B68: 970 | C68: 1580 | D68: 131.6666667 | E68: 1535.306667 | F68: 1151.48
A69: TOTAL MAINTENANCE | B69: =SUM(B58:B68) -> 44400 | C69: =SUM(C58:C68) -> 49659.81333 | D69: =SUM(D58:D68) -> 4138.317778 | E69: =SUM(E58:E68) -> 39293.77333 | F69: =SUM(F58:F68) -> 29470.33
A71: GENERAL
A72: PAYROLL TAXES | B72: 1310 | C72: 1510 | D72: =C72/12 -> 125.8333333 | E72: =F72/9*12 -> 1290.56 | F72: 967.92 | G72: 7.65% of Payroll
A73: PROP & LIAB. INSURANCE | B73: 9200 | C73: 11070 | D73: 922.5 | E73: 10750 | F73: 10747.55
A74: EMPLOYEE BENEFITS | B74: 5130 | C74: 5920 | D74: 493.3333333 | E74: 4072.6 | F74: 3054.45 | G74: 30.% of payroll - Health, Dental, CCOERA & Mtn St Employ Council
A75: WORKMAN'S COMPENSATION | B75: 510 | C75: 590 | D75: 49.16666667 | E75: 0 | F75: 0 | G75: 3.% of payroll per Mtn St Employ Council Paid in December-Estimate
A76: EMPLOYEE COMPENSATION | B76: 510 | C76: 590 | D76: 49.16666667 | E76: 0 | F76: 0 | G76: 3.% of payroll per Mtn St Employ Council Paid in December-Estimate
A77: BAD DEBT LOSS | B77: 1000 | C77: 650 | D77: 54.16666667 | E77: 0 | F77: 0 | G77: estimate
A78: LOSS ON DISPOSAL FIXED ASSET | B78: 500 | C78: 1000 | D78: 83.33333333 | E78: 1164.333333 | F78: 873.25 | G78: estimate
A79: DEPRECIATION | B79: 31340 | C79: 31110 | D79: 2592.5 | E79: 30200 | F79: 22469.1
A80: TOTAL GENERAL EXPENSE | B80: =SUM(B72:B79) -> 49500 | C80: =SUM(C72:C79) -> 52440 | D80: =SUM(D72:D79) -> 4370 | E80: =SUM(E72:E79) -> 47477.49333 | F80: =SUM(F72:F79) -> 38112.27
A82: FINANCING
A83: INT ON MORTGAGE PAYABLE | B83: 3090 | C83: 1650 | D83: =C83/12 -> 137.5 | E83: =F83/9*12 -> 3581.066667 | F83: 2685.8 | G83: 2016 Amortization Schedule
A84: MORTGAGE | B84: 40220 | C84: 41660 | D84: =C84/12 -> 3471.666667 | E84: 44542.26667 | F84: 33406.7
A85: TOTAL FINANCING | B85: =SUM(B83:B84) -> 43310 | C85: =SUM(C83:C84) -> 43310 | D85: =SUM(D83:D84) -> 3609.166667 | E85: =SUM(E83:E84) -> 48123.33333 | F85: =SUM(F83:F84) -> 36092.5
A87: RESERVES
A88: REPLACEMENT RESERVES | B88: 4800 | C88: 4800 | D88: =C88/12 -> 400 | E88: =F88/9*12 -> 4800 | F88: 3600
A89: TOTAL RESERVES | B89: =B88 -> 4800 | C89: =C88 -> 4800 | D89: =D88 -> 400 | E89: =E88 -> 4800 | F89: =F88 -> 3600
A91: CAPITAL EXPENDITURES
A92: LAND & IMPROVEMENTS | B92: 0 | C92: 0 | D92: =C92/12 -> 0 | E92: 0 | F92: 0
A93: BUILDING | B93: 0 | C93: 0 | D93: 0 | E93: 0 | F93: 0
A94: BUILDING IMPROVEMENTS | B94: 3000 | C94: 0 | D94: =C94/12 -> 0 | E94: 0 | F94: 0
A95: BLDG. EQUIP. FIXED | B95: 4800 | C95: 0 | D95: 0 | E95: 0 | F95: 0
A96: BLDG. EQUIP. PORTABLE | B96: 2160 | C96: 0 | D96: 0 | E96: =F96/9*12 -> 750.6666667 | F96: 563
A97: FURNISHINGS | B97: 3000 | C97: 0 | D97: 0 | E97: 0 | F97: 0
A98: MISC. FIXED ASSETS | B98: 4000 | C98: 0 | D98: 0 | E98: 0 | F98: 1696
A99: TOTAL CAPITAL EXP. | B99: =SUM(B92:B98) -> 16960 | C99: =SUM(C92:C98) -> 0 | D99: =SUM(D92:D98) -> 0 | E99: =SUM(E92:E98) -> 750.6666667 | F99: =SUM(F92:F98) -> 2259
A101: TOTAL EXPENDITURES | B101: =SUM(B99+B89+B85+B80+B69+B55+B48) -> 196810 | C101: =SUM(C99+C89+C85+C80+C69+C55+C48) -> 189659.8673 | D101: =SUM(D99+D89+D85+D80+D69+D55+D48) -> 15804.98894 | E101: =SUM(E99+E89+E85+E80+E69+E55+E48) -> 177222.2 | F101: =SUM(F99+F89+F85+F80+F69+F55+F48) -> 137152.67
A103: NET GAIN/LOSS | B103: =SUM(B22-B101) -> -26910 | C103: =SUM(C22-C101) -> -26649.86733 | D103: =SUM(D22-D101) -> -2220.822278 | E103: =SUM(E22-E101) -> -18193.30667 | F103: =SUM(F22-F101) -> -17881

Sheet Hilltop
B5: JEFFCO HOUSING CORPORATION
B6: HILLTOP
B7: FY 2016 OPERATING BUDGET
G8: On 10/2015 Replacement Reserves $59,313.62
F9: Actual
B10: Budget | C10: Budget | D10: Budget | F10: YTD | G10: 3% increase over 12/31/2015 potential estimate
B11: FY 2015 | C11: FY 2016 | D11: FY 2016 | E11: FY 2015 | F11: FY 2015 | G11: unless otherwise noted
A12: OPERATING RECEIPTS | B12: ANNUAL | C12: ANNUAL | D12: Monthly | E12: 12MO Estimate | F12: at 9/30/15
A14: RENTAL INCOME | B14: 288280 | C14: 296190 | D14: =C14/12 -> 24682.5 | E14: =F14/9*12 -> 291346.6667 | F14: 218510 | G14: Projected 2015 Rental Income
A15: PET RENT | B15: 0 | C15: 210 | D15: 17.5 | E15: 200 | F15: 150 | G15: Instituted on new leases
A16: VACANCIES | B16: -5770 | C16: -5920 | D16: -493.3333333 | E16: -1930.8 | F16: -1448.1 | G16: 2% of Rental Income
A17: TRANSFER FROM RESERVES | B17: 0 | C17: 8000 | D17: =C17/12 -> 666.6666667 | E17: =F17/9*12 -> 0 | F17: 0
A18: INTEREST INCOME | B18: 20 | C18: 20 | D18: 1.666666667 | E18: 9.546666667 | F18: 7.16
A19: LAUNDRY INCOME | B19: 620 | C19: 620 | D19: 51.66666667 | E19: 569.68 | F19: 427.26
A20: NSF / LATE CHARGES | B20: 400 | C20: 390 | D20: 32.5 | E20: 650.6666667 | F20: 488 | G20: Estimate
A21: OTHER INCOME | B21: 1080 | C21: 100 | D21: 8.333333333 | E21: 513.84 | F21: 385.38 | G21: Estimate
A23: TOTAL OPERATING RECEIPTS | B23: =SUM(B14:B21) -> 284630 | C23: =SUM(C14:C21) -> 299610 | D23: =SUM(D14:D21) -> 24967.5 | E23: =SUM(E14:E21) -> 291359.6 | F23: =SUM(F14:F21) -> 218519.7
A25: OPERATING EXPENDITURES
A26: ADMINISTRATIVE | B26: =B49 -> 33650 | C26: =C49 -> 36050.21667 | D26: =D49 -> 3004.184722 | E26: =E49 -> 35005.57333 | F26: =F49 -> 26254.18
A27: OPERATING | B27: =B56 -> 17280 | C27: =C56 -> 17179.92459 | D27: =D56 -> 1431.660382 | E27: =E56 -> 16520.94667 | F27: =F56 -> 13859.96
A28: MAINTENANCE | B28: =B69 -> 36240 | C28: =C69 -> 75409.65333 | D28: =D69 -> 6284.137778 | E28: =E69 -> 49946.24 | F28: =F69 -> 37452.34
A29: GENERAL | B29: =B80 -> 85510 | C29: =C80 -> 88010 | D29: =D80 -> 7334.166667 | E29: =E80 -> 82807.97333 | F29: =F80 -> 64078.76
A30: FINANCING | B30: =B85 -> 130060 | C30: =C85 -> 130060 | D30: =D85 -> 10838.33333 | E30: =E85 -> 130060 | F30: =F85 -> 108379.5
A31: RESERVES | B31: =B88 -> 3600 | C31: =C88 -> 3600 | D31: =D89 -> 300 | E31: =E89 -> 3600 | F31: =F89 -> 2700
A32: CAPITAL EXPENSE | B32: =B99 -> 35050 | C32: =C99 -> 22700 | D32: =D99 -> 1891.666667 | E32: =E99 -> 8381.578889 | F32: =F99 -> 17124.21
A33: TOTAL OPERATING EXPENSE | B33: =SUM(B26:B32) -> 341390 | C33: =SUM(C26:C32) -> 373009.7946 | D33: =SUM(D26:D32) -> 31084.14955 | E33: =SUM(E26:E32) -> 326322.3122 | F33: =SUM(F26:F32) -> 269848.95
A34: NET INCOME | B34: =SUM(B23-B33) -> -56760 | C34: =SUM(C23-C33) -> -73399.79459 | D34: =SUM(D23-D33) -> -6116.649549 | E34: =SUM(E23-E33) -> -34962.71222 | F34: =SUM(F23-F33) -> -51329.25
A37: ADMINISTRATIVE EXPENDITURES
A38: OFFICE SALARIES | B38: 12000 | C38: 12320 | D38: =C38/12 -> 1026.666667 | E38: =F38/9*12 -> 11960 | F38: 8970
A39: OFFICE SUPPLIES | B39: 120 | C39: 160 | D39: =C39/12 -> 13.33333333 | E39: =F39/9*12 -> 151.0266667 | F39: 113.27
A40: DUES & MTG EXPENSE | B40: 200 | C40: 120 | D40: 10 | E40: 111.8933333 | F40: 83.92
A41: CLIENT VERIFICATION SERVICES | B41: 0 | C41: 70 | D41: 5.833333333 | E41: =F41/9*12 -> 0 | F41: 0 | G41: Estimate
A42: MANAGEMENT FEE | B42: 14230 | C42: 14580 | D42: 1215 | E42: 14567.50667 | F42: 10925.63 | G42: Based on 5% of total income minus interest
A43: LEGAL | B43: 350 | C43: 420 | D43: 35 | E43: 1702 | F43: 1276.5 | G43: One legal & sheriff fee
A44: ACCOUNTING/AUDIT | B44: 2770 | C44: 3590 | D44: 299.1666667 | E44: 3482.573333 | F44: 2611.93
A45: TELEPHONE | B45: 1640 | C45: 1300 | D45: 108.3333333 | E45: 1266.44 | F45: 949.83
A46: COMPUTER EXPENSE | B46: 0 | C46: 1670 | D46: 139.1666667 | E46: 0 | F46: 0 | G46: Anchor Network 2016 @3% of contract $1242. and new server @ 3% 433.50
A47: MISC. ADMIN. EXPENSE | B47: 1130 | C47: =SUM(E47*1.03) -> 980.2166667 | D47: 81.68472222 | E47: 951.6666667 | F47: 713.75
A48: TRAVEL | B48: 1210 | C48: 840 | D48: 70 | E48: 812.4666667 | F48: 609.35
A49: TOTAL ADMINISTRATIVE | B49: =SUM(B38:B48) -> 33650 | C49: =SUM(C38:C48) -> 36050.21667 | D49: =SUM(D38:D48) -> 3004.184722 | E49: =SUM(E38:E48) -> 35005.57333 | F49: =SUM(F38:F48) -> 26254.18
A51: OPERATING EXPENDITURES | G51: Rate Increases for 2015/16 provided from Xcel Energy/Denver Water/Arvada
A52: ELECTRIC | B52: 3280 | C52: =SUM(E52*1.039) -> 2929.924587 | D52: =C52/12 -> 244.1603822 | E52: =F52/9*12 -> 2819.946667 | F52: 2114.96 | G52: 3.9%
A53: WATER | B53: 7250 | C53: 7440 | D53: 620 | E53: 7152 | F53: 5364 | G53: 4.0.%
A54: GAS | B54: 720 | C54: 700 | D54: 58.33333333 | E54: 670 | F54: 502.5 | G54: 5.%
A55: SEWER | B55: 6030 | C55: 6110 | D55: 509.1666667 | E55: 5879 | F55: 5878.5 | G55: 4.% - Annual
A56: TOTAL OPERATING | B56: =SUM(B52:B55) -> 17280 | C56: =SUM(C52:C55) -> 17179.92459 | D56: =SUM(D52:D55) -> 1431.660382 | E56: =SUM(E52:E55) -> 16520.94667 | F56: =SUM(F52:F55) -> 13859.96
A58: MAINTENANCE EXPENDITURES
A59: JANITORIAL CONTRACT & SUPPLIES | B59: 2990 | C59: 2880 | D59: =C59/12 -> 240 | E59: =F59/9*12 -> 5286.666667 | F59: 3965 | G59: 3% & Laundry cleaning $150month($1800yr) & $1000 for turnover
A60: EXTERMINATING CONTRACT | B60: 320 | C60: 500 | D60: 41.66666667 | E60: 0 | F60: 0 | G60: Estimate
A61: TRASH REMOVAL | B61: 3780 | C61: 3670 | D61: 305.8333333 | E61: 3567 | F61: 2667.91 | G61: 3% & Contract $297.23.month($3567.)
A62: GROUNDS CONTRACT | B62: 5790 | C62: 5790 | D62: 482.5 | E62: 5116 | F62: 3837 | G62: 3% & $150wk Apl-Oct(30wks=$4500)+ 580cleanup240sprinklers300trees/maintenance
A63: REPAIR MATERIALS | B63: 4210 | C63: 11340 | D63: 945 | E63: 9460.146667 | F63: 7095.11 | G63: 3% & Mailboxes 2 @ $800. ea (1600)
A64: REPAIR CONTRACT | B64: 5500 | C64: 20750 | D64: 1729.166667 | E64: 11603.62667 | F64: 8702.72 | G64: 3% & 11 Deck repairs @$800. ($8,800)
A65: CARPET & VINYL/PLANK | B65: 0 | C65: 4500 | D65: 375 | E65: 0 | F65: 0 | G65: 3 units carpet/vinyl/plank @ $1500 ea
A66: APPLIANCES | B66: 0 | C66: 10620 | D66: 885 | E66: 0 | F66: 0 | G66: 2 Refrigerators ($500ea), 2 Ranges ($465ea), 2 Dishwashers ($345ea) &10AC units (8000.)
A67: REPAIR PAYROLL | B67: 11200 | C67: =SUM(E67*1.03) -> 12439.65333 | D67: 1036.637778 | E67: 12077.33333 | F67: 9058
A68: SNOW REMOVAL | B68: 2450 | C68: 2920 | D68: 243.3333333 | E68: 2835.466667 | F68: 2126.6
A69: TOTAL MAINTENANCE | B69: =SUM(B59:B68) -> 36240 | C69: =SUM(C59:C68) -> 75409.65333 | D69: =SUM(D59:D68) -> 6284.137778 | E69: =SUM(E59:E68) -> 49946.24 | F69: =SUM(F59:F68) -> 37452.34
A71: GENERAL
A72: PAYROLL TAXES | B72: 1770 | C72: 1900 | D72: =C72/12 -> 158.3333333 | E72: =F72/9*12 -> 1982.146667 | F72: 1486.61 | G72: 7.65% of Payroll
A73: PROP & LIAB. INSURANCE | B73: 9000 | C73: 9200 | D73: 766.6666667 | E73: 8937 | F73: 8937.37
A74: EMPLOYEE BENEFITS | B74: 6960 | C74: 7430 | D74: 619.1666667 | E74: 5997.493333 | F74: 4498.12 | G74: 30.% of payroll - Health, Dental, CCOERA & Mtn St Employ Council
A75: WORKMAN'S COMPENSATION | B75: 700 | C75: 740 | D75: 61.66666667 | E75: 0 | F75: 0 | G75: 3.% of payroll per Mtn St Employ Council Paid in December-Estimate
A76: EMPLOYEE COMPENSATION | B76: 700 | C76: 740 | D76: 61.66666667 | E76: 0 | F76: 0 | G76: 3.% of payroll per Mtn St Employ Council Paid in December-Estimate
A77: BAD DEBT LOSS | B77: 500 | C77: 500 | D77: 41.66666667 | E77: 841.3333333 | F77: 631 | G77: estimate
A78: LOSS ON DISPOSAL FIXED ASSETS | B78: 500 | C78: 500 | D78: 41.66666667 | E78: 0 | F78: 0 | G78: estimate
A79: DEPRECIATION | B79: 65380 | C79: 67000 | D79: 5583.333333 | E79: 65050 | F79: 48525.66
A80: TOTAL GENERAL EXPENSE | B80: =SUM(B72:B79) -> 85510 | C80: =SUM(C72:C79) -> 88010 | D80: 7334.166667 | E80: 82807.97333 | F80: 64078.76
A82: FINANCING
A83: INT ON MORTGAGE PAYABLE | B83: 21740 | C83: 16430 | D83: =C83/12 -> 1369.166667 | E83: 35590 | F83: 18481.15 | G83: 2016 Amortization Schedule
A84: MORTGAGE | B84: 108320 | C84: 113630 | D84: =C84/12 -> 9469.166667 | E84: 94470 | F84: 89898.35
A85: TOTAL FINANCING | B85: =SUM(B83:B84) -> 130060 | C85: =SUM(C83:C84) -> 130060 | D85: =SUM(D83:D84) -> 10838.33333 | E85: =SUM(E83:E84) -> 130060 | F85: =SUM(F83:F84) -> 108379.5
A87: RESERVES
A88: REPLACEMENT RESERVES | B88: 3600 | C88: 3600 | D88: =C88/12 -> 300 | E88: =F88/9*12 -> 3600 | F88: 2700
A89: TOTAL RESERVES | B89: =B88 -> 3600 | C89: =C88 -> 3600 | D89: =D88 -> 300 | E89: =E88 -> 3600 | F89: =F88 -> 2700
A91: CAPITAL EXPENDITURES
A92: LAND & IMPROVEMENTS | B92: 0 | C92: 0 | D92: =C92/12 -> 0 | E92: 0 | F92: 0
A93: BUILDING | B93: 0 | C93: 0 | D93: 0 | E93: 0 | F93: 0
A94: BUILDING IMPROVEMENTS | B94: 4840 | C94: 14500 | D94: =C94/12 -> 1208.333333 | E94: 0 | F94: 0 | G94: Roof
A95: BUILDING EQUIP. FIXED | B95: 23090 | C95: 8200 | D95: 683.3333333 | E95: 5380 | F95: 3358 | G95: Furnaces-2 @ $2500ea($5000) & Water Htr -2@$1600.ea($3200)
A96: BLDG. EQUIP. PORTABLE | B96: 2620 | C96: 0 | D96: 0 | E96: 1800 | F96: 2952
A97: FURNISHINGS | B97: 4500 | C97: 0 | D97: 0 | E97: =F97/9 -> 1201.578889 | F97: 10814.21
A98: MISC. FIXED ASSETS | B98: 0 | C98: 0 | D98: 0 | E98: 0 | F98: 0
A99: TOTAL CAPITAL EXP. | B99: =SUM(B92:B98) -> 35050 | C99: =SUM(C92:C98) -> 22700 | D99: =SUM(D92:D98) -> 1891.666667 | E99: =SUM(E92:E98) -> 8381.578889 | F99: =SUM(F92:F98) -> 17124.21
A101: TOTAL EXPENDITURES | B101: =SUM(B99+B89+B85+B80+B69+B56+B49) -> 341390 | C101: =SUM(C99+C89+C85+C80+C69+C56+C49) -> 373009.7946 | D101: =SUM(D99+D89+D85+D80+D69+D56+D49) -> 31084.14955 | E101: =SUM(E99+E89+E85+E80+E69+E56+E49) -> 326322.3122 | F101: =SUM(F99+F89+F85+F80+F69+F56+F49) -> 269848.95
A103: NET GAIN/LOSS | B103: =SUM(B23-B101) -> -56760 | C103: =SUM(C23-C101) -> -73399.79459 | D103: =SUM(D23-D101) -> -6116.649549 | E103: =SUM(E23-E101) -> -34962.71222 | F103: =SUM(F23-F101) -> -51329.25

Sheet west 46
B4: JEFFCO HOUSING CORPORATION
B5: WEST 46th
B6: FY 2016 OPERATING BUDGET
G7: On 10/2015 Replacement Reserves $42,500.28
F8: Actual
B9: Budget | C9: Budget | D9: Budget | F9: YTD | G9: 3% increase over 12/31/2015 potential estimate
B10: FY 2015 | C10: FY 2016 | D10: FY 2016 | E10: FY 2015 | F10: FY 2015 | G10: unless otherwise noted
A11: OPERATING RECEIPTS | B11: ANNUAL | C11: ANNUAL | D11: Monthly | E11: 12MO Estimate | F11: at 9/30/15
A13: RENTAL INCOME | B13: 64320 | C13: 64320 | D13: =C13/12 -> 5360 | E13: =F13/9*12 -> 65017.33333 | F13: 48763 | G13: Projected 2015 Rental Income
A14: VACANCIES | B14: -1290 | C14: -1290 | D14: -107.5 | E14: 0 | F14: 0 | G14: 2% of Rental Income
A15: TRANSFER FROM RESERVES | B15: 24000 | C15: 15000 | D15: 1250 | E15: 0 | F15: 0
A16: INTEREST INCOME | B16: 20 | C16: 20 | D16: 1.666666667 | E16: 7.12 | F16: 5.34 | G16: Interest from shared reserve account shared with WRP
A17: LAUNDRY INCOME | B17: 700 | C17: 1000 | D17: 83.33333333 | E17: 923.3333333 | F17: 692.5
A18: NSF / LATE CHARGES | B18: 60 | C18: 60 | D18: 5 | E18: 46.66666667 | F18: 35
A19: OTHER INCOME | B19: 570 | C19: 570 | D19: 47.5 | E19: 848.1466667 | F19: 636.11 | G19: Income from collections of previously written off tenants.
A21: TOTAL OPERATING RECEIPTS | B21: =SUM(B13:B20) -> 88380 | C21: =SUM(C13:C20) -> 79680 | D21: =SUM(D13:D20) -> 6640 | E21: =SUM(E13:E20) -> 66842.6 | F21: =SUM(F13:F20) -> 50131.95
A23: OPERATING EXPENDITURES
A24: ADMINISTRATIVE | B24: =B45 -> 4530 | C24: =C45 -> 5850.346667 | D24: =D45 -> 487.5288889 | E24: =E45 -> 4854.093333 | F24: =F45 -> 3640.57
A25: OPERATING | B25: =B52 -> 5670 | C25: =C52 -> 4520 | D25: =D52 -> 376.6666667 | E25: =E52 -> 3576.04 | F25: =F52 -> 3018.03
A26: MAINTENANCE | B26: =B65 -> 15910 | C26: =C65 -> 28810 | D26: =D65 -> 2400.833333 | E26: =E65 -> 17771.32 | F26: =F65 -> 13328.49
A27: GENERAL | B27: =B76 -> 22810 | C27: =C76 -> 24770 | D27: =D76 -> 2064.166667 | E27: =E76 -> 21240.50667 | F27: =F76 -> 17349.95
A28: FINANCING | B28: =B81 -> 32580 | C28: =C81 -> 32580 | D28: =D81 -> 2715 | E28: =E81 -> 32580 | F28: =F81 -> 27150.2
A29: RESERVES | B29: =B85 -> 5400 | C29: =C85 -> 5400 | D29: =D85 -> 450 | E29: =E85 -> 5400 | F29: =F85 -> 4050
A30: CAPITAL EXPENSE | B30: =B94 -> 12970 | C30: =C94 -> 2480 | D30: =D94 -> 206.6666667 | E30: =E94 -> 3045 | F30: =F94 -> 0
A31: TOTAL OPERATING EXPENSE | B31: =SUM(B24:B30) -> 99870 | C31: =SUM(C24:C30) -> 104410.3467 | D31: =SUM(D24:D30) -> 8700.862222 | E31: =SUM(E24:E30) -> 88466.96 | F31: =SUM(F24:F30) -> 68537.24
A32: NET INCOME | B32: =SUM(B21-B31) -> -11490 | C32: =SUM(C21-C31) -> -24730.34667 | D32: =SUM(D21-D31) -> -2060.862222 | E32: =SUM(E21-E31) -> -21624.36 | F32: =SUM(F21-F31) -> -18405.29
A34: ADMINISTRATIVE EXPENDITURES
A35: OFFICE SUPPLIES | B35: 20 | C35: 20 | D35: =C35/12 -> 1.666666667 | E35: =F35/9*12 -> 0 | F35: 0 | G35: Estimate
A36: POSTAGE | B36: 90 | C36: 100 | D36: 8.333333333 | E36: 101.0266667 | F36: 75.77 | G36: Estimate
A37: DUES & MTG EXPENSE | B37: 50 | C37: 30 | D37: 2.5 | E37: 27.97333333 | F37: 20.98 | G37: Estimate
A38: MANAGEMENT FEE | B38: 3220 | C38: 3230 | D38: 269.1666667 | E38: 3341.8 | F38: 2506.35 | G38: Based on 5% of total income minus interest
A39: LEGAL | B39: 350 | C39: 420 | D39: 35 | E39: 0 | F39: 0 | G39: One legal & one sheriff fee
A40: ACCOUNTING/AUDIT | B40: 650 | C40: =SUM(E40*1.03) -> 950.3466667 | D40: 79.19555556 | E40: 922.6666667 | F40: 692
A41: TELEPHONE | B41: 0 | C41: 120 | D41: 10 | E41: 117.6666667 | F41: 88.25
A42: COMPUTER EXPENSE | B42: 0 | C42: 560 | D42: 46.66666667 | E42: 0 | F42: 0 | G42: Anchor Network 2016 @ 1% of contract $414.00 and new server @ 1% 144.50
A43: MISC. ADMIN. EXPENSE | B43: 70 | C43: 70 | D43: 5.833333333 | E43: 0 | F43: 0 | G43: Estimate
A44: TRAVEL | B44: 80 | C44: 350 | D44: 29.16666667 | E44: 342.96 | F44: 257.22
A45: TOTAL ADMINISTRATIVE | B45: =SUM(B35:B44) -> 4530 | C45: =SUM(C35:C44) -> 5850.346667 | D45: =SUM(D35:D44) -> 487.5288889 | E45: =SUM(E35:E44) -> 4854.093333 | F45: =SUM(F35:F44) -> 3640.57
A47: OPERATING EXPENDITURES | G47: Rate Increases for 2015/16 provided from Xcel Energy/Denver Water/Arvada
A48: ELECTRIC | B48: 740 | C48: 680 | D48: =C48/12 -> 56.66666667 | E48: =F48/9*12 -> 0 | F48: 0 | G48: 3.9% estimate for 2016 Laundry room/common area lights)
A49: WATER | B49: 3070 | C49: 2320 | D49: 193.3333333 | E49: 2232.04 | F49: 1674.03 | G49: 4.0.%
A50: GAS | B50: 550 | C50: 120 | D50: 10 | E50: 0 | F50: 0 | G50: 5.% estimate for vacancy
A51: SEWER | B51: 1310 | C51: 1400 | D51: 116.6666667 | E51: 1344 | F51: 1344 | G51: 4.% - Semi Annual
A52: TOTAL OPERATING | B52: =SUM(B48:B51) -> 5670 | C52: =SUM(C48:C51) -> 4520 | D52: =SUM(D48:D51) -> 376.6666667 | E52: =SUM(E48:E51) -> 3576.04 | F52: =SUM(F48:F51) -> 3018.03
A54: MAINTENANCE EXPENDITURES
A55: JANITORIAL CONTRACT | B55: 700 | C55: 450 | D55: =C55/12 -> 37.5 | E55: =F55/9*12 -> 933.3333333 | F55: 700 | G55: Estimate for turnover
A56: EXTERMINATING CONTRACT | B56: 1940 | C56: 1900 | D56: 158.3333333 | E56: 958.6666667 | F56: 719 | G56: 3% & Contract $73 month (876yr) & one bedbug treatment $1000.
A57: TRASH REMOVAL | B57: 870 | C57: 900 | D57: 75 | E57: 964.9333333 | F57: 723.7 | G57: 3% & Contract $73.month($876.yr)
A58: GROUNDS CONTRACT | B58: 2630 | C58: 2620 | D58: 218.3333333 | E58: 2046.666667 | F58: 1535 | G58: 3% & $75wk Apl-Oct(30wks=$2250)+ 300 cleanup/maintenance
A59: REPAIR MATERIALS | B59: 2020 | C59: 3990 | D59: 332.5 | E59: 3875.546667 | F59: 2906.66
A60: REPAIR CONTRACT | B60: 3190 | C60: 8190 | D60: 682.5 | E60: 2320 | F60: 1740 | G60: 3 % & Ext Paint $3000.Paint Rails $1000. Stain Steps $1800.
A61: CARPET & VINYL/PLANK | B61: 0 | C61: 1800 | D61: 150 | E61: 0 | F61: 0 | G61: 1 unit carpet / vinyl
A62: APPLIANCES | B62: 0 | C62: 2090 | D62: 174.1666667 | E62: 0 | F62: 0 | G62: 1 Refrigerator $550 & 1 Range $500 & 3 DWs $1035.
A63: REPAIR PAYROLL | B63: 3200 | C63: 5140 | D63: 428.3333333 | E63: 4985.333333 | F63: 3739
A64: SNOW REMOVAL | B64: 1360 | C64: 1730 | D64: 144.1666667 | E64: 1686.84 | F64: 1265.13
A65: TOTAL MAINTENANCE | B65: =SUM(B55:B64) -> 15910 | C65: =SUM(C55:C64) -> 28810 | D65: =SUM(D55:D64) -> 2400.833333 | E65: =SUM(E55:E64) -> 17771.32 | F65: =SUM(F55:F64) -> 13328.49
A67: GENERAL
A68: PAYROLL TAXES | B68: 240 | C68: 390 | D68: =C68/12 -> 32.5 | E68: =F68/9*12 -> 34.77333333 | F68: 26.08 | G68: 7.65% of Payroll
A69: PROP & LIAB. INSURANCE | B69: 4820 | C69: 5850 | D69: 487.5 | E69: 5680 | F69: 5679.57
A70: EMPLOYEE BENEFITS | B70: 960 | C70: 1540 | D70: 128.3333333 | E70: 103.6133333 | F70: 77.71 | G70: 30.% of payroll - Health, Dental, CCOERA & Mtn St Employ Council
A71: WORKMAN'S COMPENSATION | B71: 100 | C71: 150 | D71: 12.5 | E71: 0 | F71: 0 | G71: 3.% of payroll per Mtn St Employ Council Paid in December-Estimate
A72: EMPLOYEE COMPENSATION | B72: 100 | C72: 150 | D72: 12.5 | E72: 0 | F72: 0 | G72: 3.% of payroll per Mtn St Employ Council Paid in December-Estimate
A73: BAD DEBT LOSS | B73: 500 | C73: 600 | D73: 50 | E73: 0 | F73: 0 | G73: estimate
A74: LOSS ON DISPOSAL FIXED ASSET | B74: 200 | C74: 200 | D74: 16.66666667 | E74: 0 | F74: 0 | G74: estimate
A75: DEPRECIATION | B75: 15890 | C75: 15890 | D75: 1324.166667 | E75: 15422.12 | F75: 11566.59
A76: TOTAL GENERAL EXPENSE | B76: =SUM(B68:B75) -> 22810 | C76: =SUM(C68:C75) -> 24770 | D76: 2064.166667 | E76: 21240.50667 | F76: 17349.95
A78: FINANCING
A79: INT ON MORTGAGE PAYABLE | B79: 9000 | C79: 7650 | D79: =C79/12 -> 637.5 | E79: 9000 | F79: 7595.89 | G79: 2016 Amortization Schedule
A80: MORTGAGE | B80: 23580 | C80: 24930 | D80: 2077.5 | E80: 23580 | F80: 19554.31
A81: TOTAL FINANCING | B81: =SUM(B79:B80) -> 32580 | C81: =SUM(C79:C80) -> 32580 | D81: =SUM(D79:D80) -> 2715 | E81: =SUM(E79:E80) -> 32580 | F81: =SUM(F79:F80) -> 27150.2
A83: RESERVES
A84: REPLACEMENT RESERVES | B84: 5400 | C84: 5400 | D84: =C84/12 -> 450 | E84: =F84/9*12 -> 5400 | F84: 4050
A85: TOTAL RESERVES | B85: =B84 -> 5400 | C85: =C84 -> 5400 | D85: =D84 -> 450 | E85: =E84 -> 5400 | F85: =F84 -> 4050
A87: CAPITAL EXPENDITURES
A88: LAND & IMPROVEMENTS | B88: 0 | C88: 0 | D88: =C88/12 -> 0 | E88: 0 | F88: 0
A89: BUILDING IMPROVEMENTS | B89: 5800 | C89: 0 | D89: =C89/12 -> 0 | E89: 0 | F89: 0
A90: BUILDING EQUIP. FIXED | B90: 2480 | C90: 2480 | D90: 206.6666667 | E90: 2480 | F90: 0 | G90: 1 Upright Furnace $2,480.
A91: BLDG. EQUIP. PORTABLE | B91: 2090 | C91: 0 | D91: 0 | E91: 565 | F91: 0
A92: FURNISHINGS | B92: 1800 | C92: 0 | D92: 0 | E92: 0 | F92: 0
A93: MISC. FIXED ASSETS | B93: 800 | C93: 0 | D93: 0 | E93: 0 | F93: 0
A94: TOTAL CAPITAL EXP. | B94: =SUM(B88:B93) -> 12970 | C94: =SUM(C88:C93) -> 2480 | D94: =SUM(D88:D93) -> 206.6666667 | E94: =SUM(E88:E93) -> 3045 | F94: =SUM(F88:F93) -> 0
A96: TOTAL EXPENDITURES | B96: =SUM(B94+B85+B81+B76+B65+B52+B45) -> 99870 | C96: =SUM(C94+C85+C81+C76+C65+C52+C45) -> 104410.3467 | D96: =SUM(D94+D85+D81+D76+D65+D52+D45) -> 8700.862222 | E96: =SUM(E94+E85+E81+E76+E65+E52+E45) -> 88466.96 | F96: =SUM(F94+F85+F81+F76+F65+F52+F45) -> 68537.24
A98: NET GAIN/(LOSS) | B98: =SUM(B21-B96) -> -11490 | C98: =SUM(C21-C96) -> -24730.34667 | D98: =SUM(D21-D96) -> -2060.862222 | E98: =SUM(E21-E96) -> -21624.36 | F98: =SUM(F21-F96) -> -18405.29

Sheet Arvada Cottages
B3: JEFFCO HOUSING CORPORATION
B4: ARVADA COTTAGES
B5: FY 2016 OPERATING BUDGET
G6: On 10/2015 Replacement Reserves $ 14,128.86
G7: Operating Reserves $ 21,124.52
G8: Total Together $ 35,253.38
F9: Actual
B10: Budget | C10: Budget | D10: Budget | F10: YTD | G10: 3% increase over 12/31/2015 potential estimate
B11: FY 2015 | C11: FY 2016 | D11: FY 2016 | E11: FY 2015 | F11: FY 2015 | G11: unless otherwise noted
A12: OPERATING RECEIPTS | B12: ANNUAL | C12: ANNUAL | D12: Monthly | E12: 12MO Estimate | F12: at 9/30/15
A14: RENTAL INCOME | B14: 55520 | C14: 50890 | D14: =C14/12 -> 4240.833333 | E14: =F14/9*12 -> 28945.33333 | F14: 21709 | G14: current rents CHAFA Subsidy( Tenant 20% Chafa 80%)
A15: TENANT ASSISTANCE | B15: 222050 | C15: 203540 | D15: 16961.66667 | E15: 235761.3333 | F15: 176821
A16: VACANCIES | B16: -5550 | C16: -5090 | D16: -424.1666667 | E16: -2442.666667 | F16: -1832 | G16: 2% of Rental Income
A17: INTEREST INCOME | B17: 80 | C17: 80 | D17: 6.666666667 | E17: =F17/9*12 -> 69.74666667 | F17: 52.31
A18: NSF & LATE FEES | B18: 150 | C18: 150 | D18: 12.5 | E18: 288 | F18: 216
A19: OTHER INCOME | B19: 1500 | C19: 1500 | D19: 125 | E19: 7585.96 | F19: 5689.47 | G19: ( Chafa adjustments and Retro Rent)
A20: TOTAL OPERATING RECEIPTS | B20: =SUM(B14:B19) -> 273750 | C20: =SUM(C14:C19) -> 251070 | D20: =SUM(D14:D19) -> 20922.5 | E20: =SUM(E14:E19) -> 270207.7067 | F20: =SUM(F14:F19) -> 202655.78
A22: OPERATING EXPENDITURES
A23: ADMINISTRATIVE | B23: =B47 -> 28190 | C23: =C47 -> 27229.84093 | D23: =D47 -> 2269.153411 | E23: =E47 -> 26391.54667 | F23: =F47 -> 19793.66
A24: OPERATING | B24: =B54 -> 21860 | C24: =C54 -> 17530 | D24: =D54 -> 1460.833333 | E24: =E54 -> 16476.64667 | F24: =F54 -> 11247.38
A25: MAINTENANCE | B25: =B67 -> 46580 | C25: =C67 -> 50180 | D25: =D67 -> 4181.666667 | E25: =E67 -> 38159.77333 | F25: =F67 -> 28619.83
A26: GENERAL | B26: =B79 -> 67173 | C26: =C79 -> 69700 | D26: =D79 -> 5808.333333 | E26: =E79 -> 64492.56 | F26: =F79 -> 50149.25
A27: FINANCING | B27: =B84 -> 142470 | C27: =C84 -> 142470 | D27: =D84 -> 11872.5 | E27: =E84 -> 142470 | F27: =F84 -> 118726.95
A28: RESERVES | B28: =B87 -> 2400 | C28: =C87 -> 2400 | D28: =D87 -> 200 | E28: =E88 -> 2400 | F28: =F88 -> 1800
A29: CAPITAL EXPENSE | B29: =B98 -> 14120 | C29: =C98 -> 22190 | D29: =D98 -> 1849.166667 | E29: =E98 -> 11506 | F29: =F98 -> 10168.09
A30: TOTAL OPERATING EXPENSE | B30: =SUM(B23:B29) -> 322793 | C30: =SUM(C23:C29) -> 331699.8409 | D30: =SUM(D23:D29) -> 27641.65341 | E30: =SUM(E23:E29) -> 301896.5267 | F30: =SUM(F23:F29) -> 240505.16
A31: NET INCOME | B31: =SUM(B20-B30) -> -49043 | C31: =SUM(C20-C30) -> -80629.84093 | D31: =SUM(D20-D30) -> -6719.153411 | E31: =SUM(E20-E30) -> -31688.82 | F31: =SUM(F20-F30) -> -37849.38
A34: ADMINISTRATIVE EXPENDITURES
A36: OFFICE SALARIES | B36: 8670 | C36: 8320 | D36: =C36/12 -> 693.3333333 | E36: =F36/9*12 -> 8081.066667 | F36: 6060.8
A37: OFFICE SUPPLIES | B37: 370 | C37: =SUM(E37*1.03) -> 260.4389333 | D37: 21.70324444 | E37: 252.8533333 | F37: 189.64
A38: DUES & MTG EXPENSE | B38: 160 | C38: 120 | D38: 10 | E38: 119.6666667 | F38: 89.75
A39: CLIENT VERIFICATION SERVICES | B39: 1170 | C39: 1199.675333 | D39: =C39/12 -> 99.97294444 | E39: 1164.733333 | F39: 873.55 | G39: Able Real Estate-CHAFA reviews - Client Verification Services & REAC Fees
A40: MANAGEMENT FEE | B40: 13680 | C40: 12500 | D40: 1041.666667 | E40: 13506.93333 | F40: 10130.2 | G40: Based on 5% of total income minus interest
A41: LEGAL | B41: 1350 | C41: 1420 | D41: 118.3333333 | E41: 0 | F41: 0 | G41: One legal & one sheriff fee & Attys fees of $1000
A42: ACCOUNTING/AUDIT | B42: 1460 | C42: 1460 | D42: 121.6666667 | E42: 1907.253333 | F42: 1430.44
A43: TELEPHONE | B43: 0 | C43: 300 | D43: 25 | E43: 294.1733333 | F43: 220.63
A44: COMPUTER EXPENSE | B44: 0 | C44: 560 | D44: 46.66666667 | E44: 0 | F44: 0 | G44: Anchor Network 2016 @ 1% of contract $414.00 and new server @ 1% 144.50
A45: MISC. ADMIN. EXPENSE | B45: 440 | C45: =SUM(E45*1.03) -> 379.7266667 | D45: 31.64388889 | E45: 368.6666667 | F45: 276.5
A46: TRAVEL | B46: 890 | C46: 710 | D46: 59.16666667 | E46: 696.2 | F46: 522.15
A47: TOTAL ADMINISTRATIVE | B47: =SUM(B36:B46) -> 28190 | C47: =SUM(C36:C46) -> 27229.84093 | D47: =SUM(D36:D46) -> 2269.153411 | E47: =SUM(E36:E46) -> 26391.54667 | F47: =SUM(F36:F46) -> 19793.66
A49: OPERATING EXPENDITURES | G49: Rate Increases for 2015/16 provided from Xcel Energy/Denver Water/Arvada
A50: ELECTRIC | B50: 2970 | C50: 4120 | D50: =C50/12 -> 343.3333333 | E50: =F50/9*12 -> 3966.666667 | F50: 2975 | G50: 3.9%
A51: WATER | B51: 10940 | C51: 6250 | D51: 520.8333333 | E51: 6013.6 | F51: 4510.2 | G51: 4.0.% City of Arvada
A52: GAS | B52: 500 | C52: 500 | D52: 41.66666667 | E52: 0 | F52: 0 | G52: 5.% Estimate vacant unit
A53: SEWER | B53: 7450 | C53: 6660 | D53: 555 | E53: 6496.38 | F53: 3762.18 | G53: 2.45% City of Arvada
A54: TOTAL OPERATING | B54: =SUM(B50:B53) -> 21860 | C54: =SUM(C50:C53) -> 17530 | D54: =SUM(D50:D53) -> 1460.833333 | E54: =SUM(E50:E53) -> 16476.64667 | F54: =SUM(F50:F53) -> 11247.38
A56: MAINTENANCE EXPENDITURES
A57: JANITORIAL CONTRACT & SUPPLIES | B57: 510 | C57: 1000 | D57: =C57/12 -> 83.33333333 | E57: =F57/9*12 -> 973.3333333 | F57: 730
A58: EXTERMINATING CONTRACT | B58: 4650 | C58: 4650 | D58: 387.5 | E58: 0 | F58: 0 | G58: 2 BB @ $2200 ea(4400.) & regular spray 250.
A59: TRASH REMOVAL | B59: 2450 | C59: 2150 | D59: 179.1666667 | E59: 1950.48 | F59: 1462.86 | G59: Contract $179 month($2148yr)
A60: GROUNDS CONTRACT | B60: 3390 | C60: 3390 | D60: 282.5 | E60: 7593.333333 | F60: 5695 | G60: Spring Aerated/Fert-Fall est $1120+ $2170 Maint. & 3%
A61: REPAIR MATERIALS | B61: 14000 | C61: 10780 | D61: 898.3333333 | E61: 10467.70667 | F61: 7850.78
A62: REPAIR CONTRACT COSTS | B62: 12000 | C62: 9180 | D62: 765 | E62: 6002.666667 | F62: 4502 | G62: 3% & $3000 concrete repairs
A63: CARPET & VINYL/PLANK | B63: 0 | C63: 5000 | D63: 416.6666667 | E63: 0 | F63: 0 | G63: 2 units carpet & vinyl @ $2500.ea ($5000)
A64: APPLIANCES | B64: 0 | C64: 1930 | D64: 160.8333333 | E64: 0 | F64: 0 | G64: 2 Refrigerators $500. ea ($1000) & 2 Ranges $465ea (($930)
A65: REPAIR PAYROLL | B65: 8840 | C65: 11360 | D65: 946.6666667 | E65: 11030.33333 | F65: 8272.75
A66: SNOW REMOVAL | B66: 740 | C66: 740 | D66: 61.66666667 | E66: 141.92 | F66: 106.44 | G66: Estimate for vacant units
A67: TOTAL MAINTENANCE | B67: =SUM(B57:B66) -> 46580 | C67: =SUM(C57:C66) -> 50180 | D67: =SUM(D57:D66) -> 4181.666667 | E67: =SUM(E57:E66) -> 38159.77333 | F67: =SUM(F57:F66) -> 28619.83
A69: GENERAL
A70: PAYROLL TAXES | B70: 1440 | C70: 1510 | D70: =C70/12 -> 125.8333333 | E70: =F70/9*12 -> 1261.946667 | F70: 946.46 | G70: 7.65% of Payroll
A71: PROP & LIAB. INSURANCE | B71: 8080 | C71: 8020 | D71: 668.3333333 | E71: 7787 | F71: 7787.21
A72: EMPLOYEE BENEFITS | B72: 5253 | C72: 5900 | D72: 491.6666667 | E72: 3878.68 | F72: 2909.01 | G72: 30.% of payroll - Health, Dental, CCOERA & Mtn St Employ Council
A73: WORKMAN'S COMPENSATION | B73: 530 | C73: 590 | D73: 49.16666667 | E73: 0 | F73: 0 | G73: 3.% of payroll per Mtn St Employ Council Paid in December-Estimate
A74: EMPLOYEE COMPENSATION | B74: 530 | C74: 590 | D74: 49.16666667 | E74: 0 | F74: 0 | G74: 3.% of payroll per Mtn St Employ Council Paid in December-Estimate
A75: BAD DEBT LOSS | B75: 1000 | C75: 1000 | D75: 83.33333333 | E75: 0 | F75: 0 | G75: Estimate
A76: LOSS ON DISPOSAL FIXED ASSET | B76: 1000 | C76: 1000 | D76: 83.33333333 | E76: 2064.933333 | F76: 1548.7 | G76: Estimate
A77: OTHER INTERST PAID | B77: 310 | C77: 100 | D77: =C77/12 -> 8.333333333 | E77: 0 | F77: 0 | G77: Estimate 2% paid to Tenant at move out per lease
A78: DEPRECIATION | B78: 49030 | C78: 50990 | D78: 4249.166667 | E78: 49500 | F78: 36957.87
A79: TOTAL GENERAL EXPENSE | B79: =SUM(B70:B78) -> 67173 | C79: =SUM(C70:C78) -> 69700 | D79: 5808.333333 | E79: 64492.56 | F79: 50149.25
A81: FINANCING
A82: INT ON MORTGAGE PAYABLE | B82: 45000 | C82: 40420 | D82: =C82/12 -> 3368.333333 | E82: 45000 | F82: 37813 | G82: 2016 Amortization Schedule
A83: MORTGAGE | B83: 97470 | C83: 102050 | D83: =C83/12 -> 8504.166667 | E83: 97470 | F83: 80913.95
A84: TOTAL FINANCING | B84: =SUM(B82:B83) -> 142470 | C84: =SUM(C82:C83) -> 142470 | D84: =SUM(D82:D83) -> 11872.5 | E84: =SUM(E82:E83) -> 142470 | F84: =SUM(F82:F83) -> 118726.95
A86: RESERVES
A87: REPLACEMENT RESERVES | B87: 2400 | C87: 2400 | D87: =C87/12 -> 200 | E87: =F87/9*12 -> 2400 | F87: 1800
A88: TOTAL RESERVES | B88: =B87 -> 2400 | C88: =C87 -> 2400 | D88: =D87 -> 200 | E88: =E87 -> 2400 | F88: =F87 -> 1800
A90: CAPITAL EXPENDITURES
A91: LAND & IMPROVEMENTS | B91: 0 | C91: 15000 | D91: =C91/12 -> 1250 | E91: 0 | F91: 0 | G91: 6 units Sprinkler Systems @ $2,500 each ($15,000)
A92: BUILDING | B92: 0 | C92: 0 | D92: 0 | E92: 0 | F92: 0
A93: BUILDING IMPROVEMENTS | B93: 0 | C93: 0 | D93: 0 | E93: 0 | F93: 1410
A94: BLDG. EQUIP. FIXED | B94: 7190 | C94: 7190 | D94: 599.1666667 | E94: 1372 | F94: 4153 | G94: 2 Wtr Htrs $1595.($3190.) One unit cabinets $4000.
A95: BLDG. EQUIP. PORTABLE | B95: 1930 | C95: 0 | D95: 0 | E95: =F95/9*12 -> 1536 | F95: 1152
A96: FURNISHINGS | B96: 5000 | C96: 0 | D96: 0 | E96: 8598 | F96: 3453.09
A97: MISC. FIXED ASSETS | B97: 0 | C97: 0 | D97: 0 | E97: =F97/9 -> 0 | F97: 0
A98: TOTAL CAPITAL EXP. | B98: =SUM(B91:B97) -> 14120 | C98: =SUM(C91:C97) -> 22190 | D98: =SUM(D91:D97) -> 1849.166667 | E98: =SUM(E91:E97) -> 11506 | F98: =SUM(F91:F97) -> 10168.09
A100: TOTAL EXPENDITURES | B100: =SUM(B98+B88+B84+B79+B67+B54+B47) -> 322793 | C100: =SUM(C98+C88+C84+C79+C67+C54+C47) -> 331699.8409 | D100: =SUM(D98+D88+D84+D79+D67+D54+D47) -> 27641.65341 | E100: =SUM(E98+E88+E84+E79+E67+E54+E47) -> 301896.5267 | F100: =SUM(F98+F88+F84+F79+F67+F54+F47) -> 240505.16
A102: NET GAIN/LOSS | B102: =SUM(B20-B100) -> -49043 | C102: =SUM(C20-C100) -> -80629.84093 | D102: =SUM(D20-D100) -> -6719.153411 | E102: =SUM(E20-E100) -> -31688.82 | F102: =SUM(F20-F100) -> -37849.38

Sheet Allison Village
B1: JEFFCO HOUSING CORPORATION
B2: ALLISON VILLAGE
B3: FY 2016 OPERATING BUDGET
G4: Replacement Reserves $108,313.53 at 10/2015
F5: Actual
B6: Budget | C6: Budget | D6: Budget | F6: YTD | G6: 3% increase over 12/31/2015 potential estimate
B7: FY 2015 | C7: FY 2016 | D7: FY 2016 | E7: FY 2015 | F7: FY 2015 | G7: unless otherwise noted
A8: OPERATING RECEIPTS | B8: ANNUAL | C8: ANNUAL | D8: Monthly | E8: 12MO Estimate | F8: at 9/30/15
A10: RENTAL INCOME | B10: 111910 | C10: 113390 | D10: =C10/12 -> 9449.166667 | E10: =F10/9*12 -> 127373.3333 | F10: 95530 | G10: current rents (CHAFA Subsidy- Tenant 33% Chafa 67%)
A11: TENANT ASSISTANCE PAYMENTS | B11: 227250 | C11: 230210 | D11: =C11/12 -> 19184.16667 | E11: 213262.6667 | F11: 159947
A12: LESS: VACANCIES | B12: -6780 | C12: -6870 | D12: =C12/12 -> -572.5 | E12: -11676 | F12: -8757 | G12: 2% of Rental Income
A13: TRANSFER FROM RESERVES | B13: 22000 | C13: 10000 | D13: =C13/12 -> 833.3333333 | E13: 0 | F13: 0
A14: INTEREST INCOME | B14: 100 | C14: 100 | D14: =C14/12 -> 8.333333333 | E14: 96 | F14: 72
A15: OTHER INCOME | B15: 4100 | C15: 2000 | D15: 166.6666667 | E15: 6000 | F15: 2900.27 | G15: Estimate Retro Rent / Chafa adjs
A16: LAUNDRY / VENDING REVENUE | B16: 3500 | C16: 3500 | D16: 291.6666667 | E16: 4225.48 | F16: 3169.11
A17: NSF & LATE CHARGES | B17: 890 | C17: 890 | D17: =C17/12 -> 74.16666667 | E17: =F17/9*12 -> 956 | F17: 717
A18: TOTAL OPERATING RECEIPTS | B18: =SUM(B10:B17) -> 362970 | C18: =SUM(C10:C17) -> 353220 | D18: =SUM(D10:D17) -> 29435 | E18: =SUM(E10:E17) -> 340237.48 | F18: =SUM(F10:F17) -> 253578.38
A20: OPERATING EXPENDITURES
A21: ADMINISTRATIVE | B21: =B46 -> 59910 | C21: =C46 -> 61270 | D21: =D46 -> 5105.833333 | E21: =E46 -> 62410.30667 | F21: =F46 -> 46807.73
A22: OPERATING | B22: =B53 -> 47820 | C22: =C53 -> 40769.67315 | D22: =D53 -> 3397.472762 | E22: =E53 -> 39166.24 | F22: =F53 -> 30480.73
A23: MAINTENANCE | B23: =B67 -> 62020 | C23: =C67 -> 86450.49 | D23: =D67 -> 8299.2075 | E23: =E67 -> 72584.08 | F23: =F67 -> 54263.36
A24: GENERAL | B24: =B78 -> 97180 | C24: =C78 -> 96530 | D24: =D78 -> 8044.166667 | E24: =E78 -> 87435.97333 | F24: =F78 -> 67516.56
A25: FINANCING | B25: =B83 -> 123770 | C25: =C83 -> 123770 | D25: =D83 -> 10314.16667 | E25: =E83 -> 123770 | F25: =F83 -> 103135
A26: RESERVES | B26: =B87 -> 15600 | C26: =C87 -> 15600 | D26: =D87 -> 1300 | E26: =E87 -> 15600 | F26: =F87 -> 11700
A27: CAPITAL EXPENSE | B27: =B97 -> 17470 | C27: =C97 -> 5500 | D27: =D97 -> 458.3333333 | E27: =E97 -> 7531.777778 | F27: =F97 -> 10621.28
A28: TOTAL OPERATING EXPENSE | B28: =SUM(B21:B27) -> 423770 | C28: =SUM(C21:C27) -> 429890.1631 | D28: =SUM(D21:D27) -> 36919.18026 | E28: =SUM(E21:E27) -> 408498.3778 | F28: =SUM(F21:F27) -> 324524.66
A29: NET INCOME | B29: =SUM(B18-B28) -> -60800 | C29: =SUM(C18-C28) -> -76670.16315 | D29: =SUM(D18-D28) -> -7484.180262 | E29: =SUM(E18-E28) -> -68260.89778 | F29: =SUM(F18-F28) -> -70946.28
A34: ADMINISTRATIVE EXPENDITURES
A35: SALARIES | B35: 28700 | C35: 30440 | D35: =C35/12 -> 2536.666667 | E35: =F35/9*12 -> 29557.33333 | F35: 22168
A36: OFFICE SUPPLIES | B36: 890 | C36: 730 | D36: 60.83333333 | E36: 712.9733333 | F36: 534.73
A37: DUES & MTG EXPENSE | B37: 380 | C37: 290 | D37: 24.16666667 | E37: 283.3733333 | F37: 212.53 | G37: REACH membership & corp board meeting
A38: CLIENT VERIFICATION SERVICES | B38: 2160 | C38: 2330 | D38: 194.1666667 | E38: =F38/9*12 -> 2258.4 | F38: 1693.8 | G38: Able Real Estate-CHAFA reviews - Client Verification Services & REAC Fees
A39: MANAGEMENT FEE | B39: 17040 | C39: 17160 | D39: 1430 | E39: 16900.4 | F39: 12675.3 | G39: Based on 5% of estimated 2015 total income minus interest
A40: LEGAL | B40: 350 | C40: 420 | D40: 35 | E40: 4725.773333 | F40: 3544.33 | G40: One legal fee & sheriff
A41: ACCOUNTING/AUDIT | B41: 3260 | C41: 3220 | D41: 268.3333333 | E41: 3120.08 | F41: 2340.06
A42: TELEPHONE | B42: 3990 | C42: 3340 | D42: 278.3333333 | E42: 3244.16 | F42: 2433.12
A43: COMPUTER EXPENSE | B43: 0 | C43: 1680 | D43: 140 | E43: 0 | F43: 0 | G43: Anchor Network 2016 @3% of contract $1242. and new server @ 3% 433.50
A44: MISC ADMIN | B44: 1210 | C44: 420 | D44: 35 | E44: 406 | F44: 304.5
A45: TRAVEL | B45: 1930 | C45: 1240 | D45: 103.3333333 | E45: 1201.813333 | F45: 901.36
A46: TOTAL ADMINISTRATIVE | B46: =SUM(B32:B45) -> 59910 | C46: =SUM(C32:C45) -> 61270 | D46: =SUM(D32:D45) -> 5105.833333 | E46: =SUM(E35:E45) -> 62410.30667 | F46: =SUM(F35:F45) -> 46807.73
A48: OPERATING EXPENDITURES | G48: Rate Increases for 2015/16 provided from Xcel Energy/Denver Water/Arvada
A49: ELECTRICITY | B49: 24640 | C49: =SUM(E49*1.039) -> 19359.67315 | D49: =C49/12 -> 1613.306096 | E49: =F49/9*12 -> 18632.98667 | F49: 13974.74 | G49: 3.9%
A50: WATER | B50: 6130 | C50: 8200 | D50: 683.3333333 | E50: 7889.066667 | F50: 5916.8 | G50: 4.0.%
A51: GAS | B51: 10360 | C51: 7450 | D51: 620.8333333 | E51: 7099.186667 | F51: 5324.39 | G51: 5.%
A52: SEWER | B52: 6690 | C52: 5760 | D52: 480 | E52: 5545 | F52: 5264.8 | G52: 4% Clear Crk-Sewer-Semi Annual($4900.yr) 2.45% Arvada-Wastewtr- Bi Monthly $860.yr)
A53: TOTAL OPERATING | B53: =SUM(B49:B52) -> 47820 | C53: =SUM(C49:C52) -> 40769.67315 | D53: =SUM(D49:D52) -> 3397.472762 | E53: =SUM(E49:E52) -> 39166.24 | F53: =SUM(F49:F52) -> 30480.73
A55: MAINTENANCE EXPENDITURES
A56: JANITORIAL CONTRACT & SUPPLIES | B56: 3500 | C56: 2580 | D56: =C56/12 -> 215 | E56: 3403 | F56: 2265 | G56: Laundry $40wk($2080.yr) & $420. for turnovers. & 3%
A57: EXTERMINATION | B57: 1610 | C57: 2000 | D57: 166.6666667 | E57: 0 | F57: 0 | G57: Estimate for general treatment $2000
A58: TRASH REMOVAL | B58: 2430 | C58: =SUM(E58*1.03) -> 2660.49 | D58: 221.7075 | E58: 2583 | F58: 2049.8 | G58: 3% Increase + Contract $194.53month($2334.yr) plus extra for additional pickups
A59: GROUNDS CONTRACT | B59: 8000 | C59: 8100 | D59: 675 | E59: =F59/9*12 -> 8888 | F59: 6666 | G59: 3% & Contract $494 month =$5928 & $2000. for plantings & additional as needed
A60: REPAIR MATERIALS | B60: 12000 | C60: 14500 | D60: 1208.333333 | E60: 14079.46667 | F60: 10559.6
A61: REPAIR CONTRACT | B61: 6400 | C61: 15130 | D61: 1260.833333 | E61: 10318.88 | F61: 7739.16 | G61: 3% & Boiler cleaning $1000. & Concrete work on sidewalks $3,500
A62: CARPET & VINYL/PLANK | B62: 0 | C62: 4500 | D62: 1470 | E62: 0 | F62: 0 | G62: 3 Units Carpet / Vinyl or Vinyl Plank @ $1,500. each
A63: APPLIANCES | B63: 0 | C63: 1470 | D63: 122.5 | E63: 0 | F63: 0 | G63: 2 Refrigerators @$500.ea & 1 Ranges @ $465
A64: SECURITY CONTRACT | B64: 0 | C64: 6380 | D64: 531.6666667 | E64: 5026.4 | F64: 3769.8 | G64: 3% & $1,200 Camera System
A65: REPAIR PAYROLL | B65: 20980 | C65: 22430 | D65: 1869.166667 | E65: 21778.66667 | F65: 16334
A66: SNOW REMOVAL | B66: 7100 | C66: 6700 | D66: 558.3333333 | E66: 6506.666667 | F66: 4880
A67: TOTAL MAINTENANCE | B67: =SUM(B55:B66) -> 62020 | C67: =SUM(C55:C66) -> 86450.49 | D67: =SUM(D55:D66) -> 8299.2075 | E67: =SUM(E56:E66) -> 72584.08 | F67: =SUM(F56:F66) -> 54263.36
A69: GENERAL
A70: PAYROLL TAXES | B70: 3800 | C70: 4050 | D70: =C70/12 -> 337.5 | E70: =F70/9*12 -> 3829.28 | F70: 2871.96 | G70: 7.65% of Payroll
A71: PROP & LIAB. INSURANCE | B71: 9560 | C71: 10710 | D71: 892.5 | E71: 10397 | F71: 10396.74
A72: EMPLOYEE BENEFITS | B72: 14910 | C72: 15860 | D72: 1321.666667 | E72: 11758.56 | F72: 8818.92 | G72: 30.% of payroll - Health, Dental, CCOERA & Mtn St Employ Council
A73: WORKMEN'S COMPENSATION | B73: 1490 | C73: 1590 | D73: 132.5 | E73: 0 | F73: 0 | G73: 3.% of payroll per Mtn St Employ Council Paid in December-Estimate
A74: EMPLOYEE COMPENSATION | B74: 1490 | C74: 1590 | D74: 132.5 | E74: 0 | F74: 0 | G74: 3.% of payroll per Mtn St Employ Council Paid in December-Estimate
A75: BAD DEBT LOSS | B75: 4800 | C75: 2000 | D75: 166.6666667 | E75: 732.3866667 | F75: 549.29 | G75: Estimate
A76: LOSS ON DISPOSAL FIXED ASSETS | B76: 360 | C76: 230 | D76: 19.16666667 | E76: 218.7466667 | F76: 164.06 | G76: Estimate
A77: DEPRECIATION EXPENSE | B77: 60770 | C77: 60500 | D77: 5041.666667 | E77: 60500 | F77: 44715.59
A78: TOTAL GENERAL EXPENSE | B78: =SUM(B70:B77) -> 97180 | C78: =SUM(C70:C77) -> 96530 | D78: =SUM(D70:D77) -> 8044.166667 | E78: =SUM(E70:E77) -> 87435.97333 | F78: =SUM(F70:F77) -> 67516.56
A80: FINANCING
A81: MORTGAGE INTEREST | B81: 69680 | C81: 67070 | D81: =C81/12 -> 5589.166667 | E81: 69680 | F81: 58225.61 | G81: 2016 Amortization Schedule
A82: MORTGAGE PRINCIPAL | B82: 54090 | C82: 56700 | D82: 4725 | E82: 54090 | F82: 44909.39
A83: TOTAL FINANCING | B83: =SUM(B81:B82) -> 123770 | C83: =SUM(C81:C82) -> 123770 | D83: =SUM(D81:D82) -> 10314.16667 | E83: =SUM(E81:E82) -> 123770 | F83: =SUM(F81:F82) -> 103135
A85: RESERVES
A86: REPLACEMENT RESERVES | B86: 15600 | C86: 15600 | D86: =C86/12 -> 1300 | E86: =F86/9*12 -> 15600 | F86: 11700
A87: TOTAL RESERVES | B87: =B86 -> 15600 | C87: =C86 -> 15600 | D87: =SUM(D86) -> 1300 | E87: =E86 -> 15600 | F87: =F86 -> 11700
A89: CAPITAL EXPENDITURES
A90: LAND & IMPROVEMENTS | B90: 3500 | C90: 0 | D90: =C90/12 -> 0 | E90: 0 | F90: 0
A91: BUILDING | B91: 0 | C91: 0 | D91: 0 | E91: 0 | F91: 0
A92: BUILDING IMPROVEMENTS | B92: 0 | C92: 0 | D92: =C92/12 -> 0 | E92: 0 | F92: 45
A93: BLDG. EQUIP. FIXED | B93: 3000 | C93: 3000 | D93: 250 | E93: 4345 | F93: 1425 | G93: 2 Units Cabinets @ $1500. ea
A94: BLDG. EQUIP. PORTABLE | B94: 1470 | C94: 0 | D94: 0 | E94: =F94/9 -> 115.7777778 | F94: 1042
A95: FURNISHINGS | B95: 4500 | C95: 0 | D95: 0 | E95: 3071 | F95: 8109.28
A96: MISC. FIXED ASSETS | B96: 5000 | C96: 2500 | D96: 208.3333333 | E96: 0 | F96: 0 | G96: Storage Shed
A97: TOTAL CAPITAL EXP. | B97: =SUM(B90:B96) -> 17470 | C97: =SUM(C90:C96) -> 5500 | D97: =SUM(D90:D96) -> 458.3333333 | E97: =SUM(E90:E96) -> 7531.777778 | F97: =SUM(F90:F96) -> 10621.28
A99: TOTAL EXPENDITURES | B99: =SUM(B97+B87+B83+B78+B67+B53+B46) -> 423770 | C99: =SUM(C97+C87+C83+C78+C67+C53+C46) -> 429890.1631 | D99: =SUM(D97+D87+D83+D78+D67+D53+D46) -> 36919.18026 | E99: =SUM(E97+E87+E83+E78+E67+E53+E46) -> 408498.3778 | F99: =SUM(F97+F87+F83+F78+F67+F53+F46) -> 324524.66
A101: NET GAIN/(LOSS) | B101: =SUM(B18-B99) -> -60800 | C101: =SUM(C18-C99) -> -76670.16315 | D101: =SUM(D18-D99) -> -7484.180262 | E101: =SUM(E18-E99) -> -68260.89778 | F101: =SUM(F18-F99) -> -70946.28

Sheet Sheet1
